Workbook

Sheet 1A DE NOVIEMBRE DEFINITIVA
M1: =SUBTOTAL(9,M9:M328) -> 0 | N1: 46551.45723 | O1: 2049246.54 | P1: 81968.94 | Q1: 143445.93 | R1: 0 | S1: 225414.87 | T1: 2049246.54 | U1: 2274661.41 | W1: =SUBTOTAL(9,W9:W328) -> 0 | X1: =SUBTOTAL(9,X9:X328) -> 0 | Y1: =SUBTOTAL(9,Y9:Y312) ->  | Z1: =SUBTOTAL(9,Z9:Z328) -> 140652.48 | AA1: =SUBTOTAL(9,AA9:AA328) -> 14997.87 | AB1: =SUBTOTAL(9,AB9:AB328) -> 2149006.8 | AD1: =SUBTOTAL(9,AD9:AD312) -> 0
O2: =TRUNC(N2*I2,2) -> 0 | P2: =TRUNC(N2*I2*0.04,2) -> 0 | Q2: =TRUNC(N2*0.07*I2,2) -> 0 | R2: =L2 -> 0 | S2: =TRUNC(Q2+P2+(IF(R2>519,519,R2))+IF(K2=0,0,K2*N2),2) -> 0 | T2: =TRUNC((IF(K2=0,I2*N2,(I2-K2)*N2))+(IF(R2<519,0,R2-519)),2)+M2 -> 0 | U2: =S2+T2 -> 0 | V2: =P2 -> 0 | Y2: =IF(N2>0.01,(T2-VLOOKUP(T2,quincenal,1))*VLOOKUP(T2,quincenal,3)+VLOOKUP(T2,quincenal,2)-VLOOKUP(T2,subquincenal,2),0) -> 0 | Z2: =TRUNC(IF(Y2>0.01,Y2,0),2) -> 0 | AA2: =TRUNC(IF(Y2<0.01,-Y2,0),2) -> 0 | AB2: =U2-W2-X2-Z2+AA2-P2 -> 0 | AC2: =#REF! -> 
A3: H. AYUNTAMIENTO DE ETZATLAN, JALISCO
B4: ADMINISTRACION 2012-2015
B5: NOMINA CORRESPONDIENTE A LA PRIMERA QUINCENA DE NOVIEMBRE DE 2015
D6: Etzatlán, Jalisco a 15 de Noviembre de 2015.
B7: CAPITULO | C7: PARTIDA | D7: NOMBRE | E7: RFC | F7: CURP | G7: FECHA DE INGRESO | H7: CARGO | I7: DIAS LABORADOS | J7: PAGO CON | K7: DIAS CON INCAPACIDAD | L7: TIEMPO EXTRA | M7: OTROS INGRESOS | N7: SUELDO POR DIA PROPUESTO | O7: SUELDO BASE | P7: FONDO DE AHORRO | Q7: APOYO EDUCACIONAL | R7: TIEMPO EXTRA | S7: SUB TOTAL EXENTO | T7: SUB TOTAL GRAVADO | U7: SUB TOTAL A PAGAR | V7: FONDO DE AHORRO | W7: PRESTAMOS | X7: OTRAS DEDUCCIONES | Y7: CALCULO | Z7: I.S.R. | AA7: SUBSIDIO AL EMPLEO | AB7: TOTAL A PAGAR | AC7: nomina | AD7: FIRMA DE RECIBIDO
D8: SALA DE REGIDORES
A9: 1 | B9: 1 | C9: 1 | D9: GOMEZ ALVARADO MA MAGDALENA | E9: FEGC520708 | F9: FEGC520708HJCRMR08 | G9: 2012-10-01 | H9: REGIDOR | I9: 15 | J9: TARJETA | L9: 0 | M9: 0 | N9: =8023/15 -> 534.8666667 | O9: =TRUNC(N9*I9,2) -> 8023 | P9: =TRUNC(N9*I9*0.04,2) -> 320.92 | Q9: =TRUNC(N9*0.07*I9,2) -> 561.61 | R9: =L9 -> 0 | S9: =TRUNC(Q9+P9+(IF(R9>519,519,R9))+IF(K9=0,0,K9*N9),2) -> 882.53 | T9: =TRUNC((IF(K9=0,I9*N9,(I9-K9)*N9))+(IF(R9<519,0,R9-519)),2)+M9 -> 8023 | U9: =S9+T9 -> 8905.53 | X9: 0 | Y9: =IF(N9>0.01,(T9-VLOOKUP(T9,quincenal,1))*VLOOKUP(T9,quincenal,3)+VLOOKUP(T9,quincenal,2)-VLOOKUP(T9,subquincenal,2),0) -> 1166.523624 | Z9: =TRUNC(IF(Y9>0.01,Y9,0),2) -> 1166.52 | AA9: =TRUNC(IF(Y9<0.01,-Y9,0),2) -> 0 | AB9: =U9-W9-X9-Z9+AA9 -> 7739.01 | AC9: =#REF! ->  | AE9: 1
D10: COVARRUBIAS VALENCIA JOSE | H10: REGIDOR | I10: 15 | J10: TARJETA | L10: 0 | M10: 0 | N10: =8023/15 -> 534.8666667 | O10: =TRUNC(N10*I10,2) -> 8023 | P10: =TRUNC(N10*I10*0.04,2) -> 320.92 | Q10: =TRUNC(N10*0.07*I10,2) -> 561.61 | R10: =L10 -> 0 | S10: =TRUNC(Q10+P10+(IF(R10>519,519,R10))+IF(K10=0,0,K10*N10),2) -> 882.53 | T10: =TRUNC((IF(K10=0,I10*N10,(I10-K10)*N10))+(IF(R10<519,0,R10-519)),2)+M10 -> 8023 | U10: =S10+T10 -> 8905.53 | X10: 0 | Y10: =IF(N10>0.01,(T10-VLOOKUP(T10,quincenal,1))*VLOOKUP(T10,quincenal,3)+VLOOKUP(T10,quincenal,2)-VLOOKUP(T10,subquincenal,2),0) -> 1166.523624 | Z10: =TRUNC(IF(Y10>0.01,Y10,0),2) -> 1166.52 | AA10: =TRUNC(IF(Y10<0.01,-Y10,0),2) -> 0 | AB10: =U10-W10-X10-Z10+AA10 -> 7739.01 | AE10: 2
A11: 3 | B11: 1 | C11: 1 | D11: BARAJAS DE LA TORRE ABIGAIL | G11: 2012-10-01 | H11: REGIDOR | I11: 15 | J11: TARJETA | L11: 0 | M11: 0 | N11: 534.8666667 | O11: =TRUNC(N11*I11,2) -> 8023 | P11: =TRUNC(N11*I11*0.04,2) -> 320.92 | Q11: =TRUNC(N11*0.07*I11,2) -> 561.61 | R11: =L11 -> 0 | S11: =TRUNC(Q11+P11+(IF(R11>519,519,R11))+IF(K11=0,0,K11*N11),2) -> 882.53 | T11: =TRUNC((IF(K11=0,I11*N11,(I11-K11)*N11))+(IF(R11<519,0,R11-519)),2)+M11 -> 8023 | U11: =S11+T11 -> 8905.53 | X11: 0 | Y11: =IF(N11>0.01,(T11-VLOOKUP(T11,quincenal,1))*VLOOKUP(T11,quincenal,3)+VLOOKUP(T11,quincenal,2)-VLOOKUP(T11,subquincenal,2),0) -> 1166.523624 | Z11: 1166.52 | AA11: =TRUNC(IF(Y11<0.01,-Y11,0),2) -> 0 | AB11: =U11-W11-X11-Z11+AA11 -> 7739.01 | AC11: =#REF! ->  | AE11: 3
A12: 4 | B12: 1 | C12: 1 | D12: MELCHOR NAVARRO OBED | G12: 2012-10-01 | H12: REGIDOR | I12: 15 | J12: TARJETA | L12: 0 | M12: 0 | N12: 534.8666667 | O12: 8023 | P12: 320.92 | Q12: 561.61 | R12: 0 | S12: 882.53 | T12: 8023 | U12: 8905.53 | X12: 0 | Y12: 1166.523624 | Z12: 1166.52 | AA12: 0 | AB12: 7739.01 | AC12: =#REF! ->  | AE12: 4
A13: 5 | B13: 1 | C13: 1 | D13: GOMEZ RICO LUZ ELENA | G13: 2012-10-01 | H13: REGIDOR | I13: 15 | J13: TARJETA | L13: 0 | M13: 0 | N13: 534.8666667 | O13: 8023 | P13: 320.92 | Q13: 561.61 | R13: 0 | S13: 882.53 | T13: 8023 | U13: 8905.53 | X13: 0 | Y13: 1166.523624 | Z13: 1166.52 | AA13: 0 | AB13: 7739.01 | AC13: =#REF! ->  | AE13: 5
A14: 6 | B14: 1 | C14: 1 | D14: GUTIERREZ GARCIA GERARDO | G14: 2012-10-01 | H14: REGIDOR | I14: 15 | J14: TARJETA | L14: 0 | M14: 0 | N14: 534.8666667 | O14: 8023 | P14: 320.92 | Q14: 561.61 | R14: 0 | S14: 882.53 | T14: 8023 | U14: 8905.53 | X14: 0 | Y14: 1166.523624 | Z14: 1166.52 | AA14: 0 | AB14: 7739.01 | AC14: =#REF! ->  | AE14: 6
A15: 7 | B15: 1 | C15: 1 | D15: ROBLEDO ORTIZ EDGAR ANTONIO | G15: 2012-10-01 | H15: REGIDOR | I15: 15 | J15: TARJETA | L15: 0 | M15: 0 | N15: 534.8666667 | O15: 8023 | P15: 320.92 | Q15: 561.61 | R15: 0 | S15: 882.53 | T15: 8023 | U15: 8905.53 | Y15: 1166.523624 | Z15: 1166.52 | AA15: 0 | AB15: 7739.01 | AC15: =#REF! ->  | AE15: 7
A16: 8 | B16: 1 | C16: 1 | D16: SIERRA ROMERO DOLORES EDITH | G16: 2012-10-01 | H16: REGIDOR | I16: 15 | J16: TARJETA | L16: 0 | M16: 0 | N16: 534.8666667 | O16: 8023 | P16: 320.92 | Q16: 561.61 | R16: 0 | S16: 882.53 | T16: 8023 | U16: 8905.53 | Y16: 1166.523624 | Z16: 1166.52 | AA16: 0 | AB16: 7739.01 | AC16: =#REF! ->  | AE16: 8
A17: 9 | B17: 1 | C17: 1 | D17: VELEZ FREGOSO LUIS MANUEL | G17: 2012-10-01 | H17: REGIDOR | I17: 15 | J17: TARJETA | L17: 0 | M17: 0 | N17: 534.8666667 | O17: 8023 | P17: 320.92 | Q17: 561.61 | R17: 0 | S17: 882.53 | T17: 8023 | U17: 8905.53 | W17: 0 | Y17: 1166.523624 | Z17: 1166.52 | AA17: 0 | AB17: 7739.01 | AC17: =#REF! ->  | AE17: 9
B18: 1 | C18: 1 | E18: BAGV780611 | F18: BAGV780611MJCRTR04 | H18: SECRETARIA SALA DE REGIDORES | I18: 0 | J18: TARJETA | L18: 0 | M18: 0 | N18: 172.16 | O18: =TRUNC(N18*I18,2) -> 0 | P18: 0 | Q18: 0 | R18: 0 | S18: 0 | T18: 0 | U18: 0 | X18: 0 | Z18: 0 | AA18: 0 | AB18: 0 | AC18: =#REF! ->  | AE18: 2658.44
D19: SALA DE REGIDORES | O19: =SUM(O9:O18) -> 72207 | P19: =SUM(P9:P18) -> 2888.28 | Q19: 5054.49 | R19: 0 | S19: 7942.77 | T19: 72207 | U19: 80149.77 | V19: 0 | W19: 0 | X19: 0 | Y19: 10498.71262 | Z19: 10498.68 | AA19: 0 | AB19: 69651.09 | AD19: 0
D21: PRESIDENCIA MUNICIPAL
D22: RON RAMOS EDUARDO | H22: PRESIDENTE MUNICIPAL | I22: 15 | J22: TARJETA | L22: 0 | M22: 0 | N22: =14227/15 -> 948.4666667 | O22: =TRUNC(N22*I22,2) -> 14227 | P22: =TRUNC(N22*I22*0.04,2) -> 569.08 | Q22: =TRUNC(N22*0.07*I22,2) -> 995.89 | R22: =L22 -> 0 | S22: =TRUNC(Q22+P22+(IF(R22>519,519,R22))+IF(K22=0,0,K22*N22),2) -> 1564.97 | T22: =TRUNC((IF(K22=0,I22*N22,(I22-K22)*N22))+(IF(R22<519,0,R22-519)),2)+M22 -> 14227 | U22: =S22+T22 -> 15791.97 | X22: 0 | Y22: =IF(N22>0.01,(T22-VLOOKUP(T22,quincenal,1))*VLOOKUP(T22,quincenal,3)+VLOOKUP(T22,quincenal,2)-VLOOKUP(T22,subquincenal,2),0) -> 2577.502608 | Z22: =TRUNC(IF(Y22>0.01,Y22,0),2) -> 2577.5 | AA22: =TRUNC(IF(Y22<0.01,-Y22,0),2) -> 0 | AB22: =U22-W22-X22-Z22+AA22 -> 13214.47 | AE22: 10
D23: BAROCIO FIGUEROA ANTONIO | E23: FEPM871023ND1 | F23: FEPM871023MJCRRR07 | H23: SECRETARIO PARTICULAR | I23: 15 | J23: TARJETA | L23: 0 | M23: 0 | N23: 405.5341 | O23: =TRUNC(N23*I23,2) -> 6083.01 | P23: =TRUNC(N23*I23*0.04,2) -> 243.32 | Q23: =TRUNC(N23*0.07*I23,2) -> 425.81 | R23: =L23 -> 0 | S23: =TRUNC(Q23+P23+(IF(R23>519,519,R23))+IF(K23=0,0,K23*N23),2) -> 669.13 | T23: =TRUNC((IF(K23=0,I23*N23,(I23-K23)*N23))+(IF(R23<519,0,R23-519)),2)+M23 -> 6083.01 | U23: =S23+T23 -> 6752.14 | X23: 0 | Y23: =IF(N23>0.01,(T23-VLOOKUP(T23,quincenal,1))*VLOOKUP(T23,quincenal,3)+VLOOKUP(T23,quincenal,2)-VLOOKUP(T23,subquincenal,2),0) -> 752.14176 | Z23: =TRUNC(IF(Y23>0.01,Y23,0),2) -> 752.14 | AA23: =TRUNC(IF(Y23<0.01,-Y23,0),2) -> 0 | AB23: =U23-W23-X23-Z23+AA23 -> 6000 | AE23: 11
D24: BECERRA GONZALEZ MARISOL | E24: FEPM871023ND1 | F24: FEPM871023MJCRRR07 | H24: SECRETARIA | I24: 15 | J24: TARJETA | L24: 0 | M24: 0 | N24: 260.287 | O24: =TRUNC(N24*I24,2) -> 3904.3 | P24: =TRUNC(N24*I24*0.04,2) -> 156.17 | Q24: =TRUNC(N24*0.07*I24,2) -> 273.3 | R24: =L24 -> 0 | S24: =TRUNC(Q24+P24+(IF(R24>519,519,R24))+IF(K24=0,0,K24*N24),2) -> 429.47 | T24: =TRUNC((IF(K24=0,I24*N24,(I24-K24)*N24))+(IF(R24<519,0,R24-519)),2)+M24 -> 3904.3 | U24: =S24+T24 -> 4333.77 | X24: 0 | Y24: =IF(N24>0.01,(T24-VLOOKUP(T24,quincenal,1))*VLOOKUP(T24,quincenal,3)+VLOOKUP(T24,quincenal,2)-VLOOKUP(T24,subquincenal,2),0) -> 333.7764 | Z24: =TRUNC(IF(Y24>0.01,Y24,0),2) -> 333.77 | AA24: =TRUNC(IF(Y24<0.01,-Y24,0),2) -> 0 | AB24: =U24-W24-X24-Z24+AA24 -> 4000 | AC24: =#REF! ->  | AE24: 12
A25: 11 | B25: 1 | C25: 2 | D25: FREGOSO PARRA MARTHA | E25: FEPM871023ND1 | F25: FEPM871023MJCRRR07 | H25: SECRETARIA PARTICULAR | I25: 15 | J25: TARJETA | L25: 0 | M25: 0 | N25: =3349/15 -> 223.2666667 | O25: =TRUNC(N25*I25,2) -> 3349 | P25: =TRUNC(N25*I25*0.04,2) -> 133.96 | Q25: =TRUNC(N25*0.07*I25,2) -> 234.43 | R25: =L25 -> 0 | S25: =TRUNC(Q25+P25+(IF(R25>519,519,R25))+IF(K25=0,0,K25*N25),2) -> 368.39 | T25: =TRUNC((IF(K25=0,I25*N25,(I25-K25)*N25))+(IF(R25<519,0,R25-519)),2)+M25 -> 3349 | U25: =S25+T25 -> 3717.39 | X25: 0 | Y25: =IF(N25>0.01,(T25-VLOOKUP(T25,quincenal,1))*VLOOKUP(T25,quincenal,3)+VLOOKUP(T25,quincenal,2)-VLOOKUP(T25,subquincenal,2),0) -> 135.188112 | Z25: =TRUNC(IF(Y25>0.01,Y25,0),2) -> 135.18 | AA25: =TRUNC(IF(Y25<0.01,-Y25,0),2) -> 0 | AB25: =U25-W25-X25-Z25+AA25 -> 3582.21 | AC25: =[2]PORTADA!$D$10 -> 1 | AE25: 13
D26: PRESIDENCIA MUNICIPAL | O26: =SUM(O22:O25) -> 27563.31 | P26: =SUM(P22:P25) -> 1102.53 | Q26: 1929.43 | R26: 0 | S26: 3031.96 | T26: 27563.31 | U26: 30595.27 | V26: 0 | W26: 0 | X26: 0 | Y26: 3798.60888 | Z26: 3798.59 | AA26: 0 | AB26: 26796.68
D28: SECRETARIA GENERAL Y SINDICATURA
A29: 13 | B29: 1 | C29: 5 | D29: FREGOSO BARBOZA MARTIN DANIEL | H29: SINDICO MUNICIPAL | I29: 15 | J29: TARJETA | L29: 0 | M29: 0 | N29: =10307/15 -> 687.1333333 | O29: =TRUNC(N29*I29,2) -> 10307 | P29: =TRUNC(N29*I29*0.04,2) -> 412.28 | Q29: =TRUNC(N29*0.07*I29,2) -> 721.49 | R29: =L29 -> 0 | S29: =TRUNC(Q29+P29+(IF(R29>519,519,R29))+IF(K29=0,0,K29*N29),2) -> 1133.77 | T29: =TRUNC((IF(K29=0,I29*N29,(I29-K29)*N29))+(IF(R29<519,0,R29-519)),2)+M29 -> 10307 | U29: =S29+T29 -> 11440.77 | W29: 0 | X29: 0 | Y29: =IF(N29>0.01,(T29-VLOOKUP(T29,quincenal,1))*VLOOKUP(T29,quincenal,3)+VLOOKUP(T29,quincenal,2)-VLOOKUP(T29,subquincenal,2),0) -> 1655.518608 | Z29: =TRUNC(IF(Y29>0.01,Y29,0),2) -> 1655.51 | AA29: =TRUNC(IF(Y29<0.01,-Y29,0),2) -> 0 | AB29: =U29-W29-X29-Z29+AA29 -> 9785.26 | AC29: =#REF! ->  | AE29: 14
A30: 14 | B30: 1 | C30: 1 | D30: MEDINA FLORES EVERARDO | G30: 2012-10-01 | H30: SECRETARIO GENERAL | I30: 15 | J30: TARJETA | L30: 0 | M30: 0 | N30: 617.494 | O30: =TRUNC(N30*I30,2) -> 9262.41 | P30: =TRUNC(N30*I30*0.04,2) -> 370.49 | Q30: =TRUNC(N30*0.07*I30,2) -> 648.36 | R30: =L30 -> 0 | S30: =TRUNC(Q30+P30+(IF(R30>519,519,R30))+IF(K30=0,0,K30*N30),2) -> 1018.85 | T30: =TRUNC((IF(K30=0,I30*N30,(I30-K30)*N30))+(IF(R30<519,0,R30-519)),2)+M30 -> 9262.41 | U30: =S30+T30 -> 10281.26 | X30: 0 | Y30: =IF(N30>0.01,(T30-VLOOKUP(T30,quincenal,1))*VLOOKUP(T30,quincenal,3)+VLOOKUP(T30,quincenal,2)-VLOOKUP(T30,subquincenal,2),0) -> 1431.2616 | Z30: =TRUNC(IF(Y30>0.01,Y30,0),2) -> 1431.26 | AA30: =TRUNC(IF(Y30<0.01,-Y30,0),2) -> 0 | AB30: =U30-W30-X30-Z30+AA30 -> 8850 | AE30: 15
A31: 15 | D31: GUTIERREZ SIORDIA LORENA | H31: SECRETARIA DE SECRETARIA GENERAL | I31: 15 | J31: TARJETA | L31: 0 | M31: 0 | N31: 183.152 | O31: =TRUNC(N31*I31,2) -> 2747.28 | P31: =TRUNC(N31*I31*0.04,2) -> 109.89 | Q31: =TRUNC(N31*0.07*I31,2) -> 192.3 | R31: =L31 -> 0 | S31: =TRUNC(Q31+P31+(IF(R31>519,519,R31))+IF(K31=0,0,K31*N31),2) -> 302.19 | T31: =TRUNC((IF(K31=0,I31*N31,(I31-K31)*N31))+(IF(R31<519,0,R31-519)),2)+M31 -> 2747.28 | U31: =S31+T31 -> 3049.47 | X31: 0 | Y31: =IF(N31>0.01,(T31-VLOOKUP(T31,quincenal,1))*VLOOKUP(T31,quincenal,3)+VLOOKUP(T31,quincenal,2)-VLOOKUP(T31,subquincenal,2),0) -> 49.470976 | Z31: =TRUNC(IF(Y31>0.01,Y31,0),2) -> 49.47 | AA31: =TRUNC(IF(Y31<0.01,-Y31,0),2) -> 0 | AB31: =U31-W31-X31-Z31+AA31 -> 3000 | AE31: 16
A32: 16 | D32: CARDENAS GUEVARA JORGE RAFAEL | H32: AUXILIAR ADMINISTRATIVO | I32: 15 | J32: TARJETA | L32: 0 | M32: 0 | N32: 183.152 | O32: =TRUNC(N32*I32,2) -> 2747.28 | P32: =TRUNC(N32*I32*0.04,2) -> 109.89 | Q32: =TRUNC(N32*0.07*I32,2) -> 192.3 | R32: =L32 -> 0 | S32: =TRUNC(Q32+P32+(IF(R32>519,519,R32))+IF(K32=0,0,K32*N32),2) -> 302.19 | T32: =TRUNC((IF(K32=0,I32*N32,(I32-K32)*N32))+(IF(R32<519,0,R32-519)),2)+M32 -> 2747.28 | U32: =S32+T32 -> 3049.47 | X32: 0 | Y32: =IF(N32>0.01,(T32-VLOOKUP(T32,quincenal,1))*VLOOKUP(T32,quincenal,3)+VLOOKUP(T32,quincenal,2)-VLOOKUP(T32,subquincenal,2),0) -> 49.470976 | Z32: =TRUNC(IF(Y32>0.01,Y32,0),2) -> 49.47 | AA32: =TRUNC(IF(Y32<0.01,-Y32,0),2) -> 0 | AB32: =U32-W32-X32-Z32+AA32 -> 3000 | AC32: =#REF! ->  | AE32: 17
D33: SECRETARIA GENERAL Y SINDICATURA | O33: =SUM(O29:O32) -> 25063.97 | P33: 1002.55 | Q33: 1754.45 | R33: 0 | S33: 2757 | T33: 25063.97 | U33: 27820.97 | V33: 0 | W33: 0 | X33: 0 | Y33: =SUM(Y29:Y32) -> 3185.72216 | Z33: 3185.71 | AA33: 0 | AB33: 24635.26
D35: OFICIALIA MAYOR ADMINISTRATIVA
D36: LEDESMA MORAN JOSE FEDERICO | H36: OFICIAL MAYOR | I36: 15 | J36: TARJETA | L36: 0 | M36: 0 | N36: 491.062 | O36: =TRUNC(N36*I36,2) -> 7365.93 | P36: =TRUNC(N36*I36*0.04,2) -> 294.63 | Q36: =TRUNC(N36*0.07*I36,2) -> 515.61 | R36: =L36 -> 0 | S36: =TRUNC(Q36+P36+(IF(R36>519,519,R36))+IF(K36=0,0,K36*N36),2) -> 810.24 | T36: =TRUNC((IF(K36=0,I36*N36,(I36-K36)*N36))+(IF(R36<519,0,R36-519)),2)+M36 -> 7365.93 | U36: =S36+T36 -> 8176.17 | X36: 0 | Y36: =IF(N36>0.01,(T36-VLOOKUP(T36,quincenal,1))*VLOOKUP(T36,quincenal,3)+VLOOKUP(T36,quincenal,2)-VLOOKUP(T36,subquincenal,2),0) -> 1026.173472 | Z36: =TRUNC(IF(Y36>0.01,Y36,0),2) -> 1026.17 | AA36: =TRUNC(IF(Y36<0.01,-Y36,0),2) -> 0 | AB36: =U36-W36-X36-Z36+AA36 -> 7150 | AE36: 18
D37: VENTURA PEREZ HERLINDA AURORA | E37: VEPH840722PR4 | F37: VEPH840722MJCNRR04 | H37: SECRETARIA | I37: 15 | J37: TARJETA | L37: 0 | M37: 0 | N37: =3056/15 -> 203.7333333 | O37: =TRUNC(N37*I37,2) -> 3056 | P37: =TRUNC(N37*I37*0.04,2) -> 122.24 | Q37: =TRUNC(N37*0.07*I37,2) -> 213.92 | R37: 0 | S37: =TRUNC(Q37+P37+(IF(R37>519,519,R37))+IF(K37=0,0,K37*N37),2) -> 336.16 | T37: =TRUNC((IF(K37=0,I37*N37,(I37-K37)*N37))+(IF(R37<519,0,R37-519)),2)+M37 -> 3056 | U37: 3392.16 | W37: 0 | X37: 0 | Y37: =IF(N37>0.01,(T37-VLOOKUP(T37,quincenal,1))*VLOOKUP(T37,quincenal,3)+VLOOKUP(T37,quincenal,2)-VLOOKUP(T37,subquincenal,2),0) -> 83.059712 | Z37: 83.05 | AA37: 0 | AB37: 3309.11 | AC37: =[2]PORTADA!$D$10 -> 1 | AE37: 19
A38: 20 | D38: BARAJAS DE LA TORRE ANA MARIA | E38: GOTG850723 | H38: ATENCIO CIUDADANA | I38: 15 | J38: TARJETA | L38: 0 | M38: 0 | N38: 113.977 | O38: =TRUNC(N38*I38,2) -> 1709.65 | P38: =TRUNC(N38*I38*0.04,2) -> 68.38 | Q38: =TRUNC(N38*0.07*I38,2) -> 119.67 | R38: =L38 -> 0 | S38: =TRUNC(Q38+P38+(IF(R38>519,519,R38))+IF(K38=0,0,K38*N38),2) -> 188.05 | T38: =TRUNC((IF(K38=0,I38*N38,(I38-K38)*N38))+(IF(R38<519,0,R38-519)),2)+M38 -> 1709.65 | U38: =S38+T38 -> 1897.7 | X38: 0 | Y38: =IF(N38>0.01,(T38-VLOOKUP(T38,quincenal,1))*VLOOKUP(T38,quincenal,3)+VLOOKUP(T38,quincenal,2)-VLOOKUP(T38,subquincenal,2),0) -> -102.30024 | Z38: =TRUNC(IF(Y38>0.01,Y38,0),2) -> 0 | AA38: =TRUNC(IF(Y38<0.01,-Y38,0),2) -> 102.3 | AB38: =U38-W38-X38-Z38+AA38 -> 2000 | AC38: =#REF! ->  | AE38: 20
A39: 22 | D39: HERNANDEZ SANCHEZ ROSA ELIZABETH | H39: CONSERJE | I39: 15 | J39: TARJETA | L39: 0 | M39: 0 | N39: 113.977 | O39: =TRUNC(N39*I39,2) -> 1709.65 | P39: =TRUNC(N39*I39*0.04,2) -> 68.38 | Q39: =TRUNC(N39*0.07*I39,2) -> 119.67 | R39: =L39 -> 0 | S39: =TRUNC(Q39+P39+(IF(R39>519,519,R39))+IF(K39=0,0,K39*N39),2) -> 188.05 | T39: =TRUNC((IF(K39=0,I39*N39,(I39-K39)*N39))+(IF(R39<519,0,R39-519)),2)+M39 -> 1709.65 | U39: =S39+T39 -> 1897.7 | X39: 0 | Y39: =IF(N39>0.01,(T39-VLOOKUP(T39,quincenal,1))*VLOOKUP(T39,quincenal,3)+VLOOKUP(T39,quincenal,2)-VLOOKUP(T39,subquincenal,2),0) -> -102.30024 | Z39: =TRUNC(IF(Y39>0.01,Y39,0),2) -> 0 | AA39: =TRUNC(IF(Y39<0.01,-Y39,0),2) -> 102.3 | AB39: =U39-W39-X39-Z39+AA39 -> 2000 | AC39: =#REF! ->  | AE39: 21
D40: OFICIALIA MAYOR ADMINISTRATIVA | O40: =SUM(O36:O39) -> 13841.23 | P40: 553.63 | Q40: 968.87 | R40: 0 | S40: 1522.5 | T40: 13841.23 | U40: 15363.73 | V40: 0 | W40: 0 | X40: 0 | Y40: 904.632704 | Z40: 1109.22 | AA40: 204.6 | AB40: 14459.11
D42: DEPARTAMENTO JURIDICO
A43: 23 | B43: 1 | C43: 7 | D43: FREGOSO MEDRANO CARLOS ALEJANDRO | H43: DIRECTOR JURIDICO | I43: 15 | J43: TARJETA | L43: 0 | M43: 0 | N43: 665.835 | O43: =TRUNC(N43*I43,2) -> 9987.52 | P43: =TRUNC(N43*I43*0.04,2) -> 399.5 | Q43: =TRUNC(N43*0.07*I43,2) -> 699.12 | R43: =L43 -> 0 | S43: =TRUNC(Q43+P43+(IF(R43>519,519,R43))+IF(K43=0,0,K43*N43),2) -> 1098.62 | T43: =TRUNC((IF(K43=0,I43*N43,(I43-K43)*N43))+(IF(R43<519,0,R43-519)),2)+M43 -> 9987.52 | U43: =S43+T43 -> 11086.14 | X43: 0 | Y43: =IF(N43>0.01,(T43-VLOOKUP(T43,quincenal,1))*VLOOKUP(T43,quincenal,3)+VLOOKUP(T43,quincenal,2)-VLOOKUP(T43,subquincenal,2),0) -> 1586.145096 | Z43: =TRUNC(IF(Y43>0.01,Y43,0),2) -> 1586.14 | AA43: =TRUNC(IF(Y43<0.01,-Y43,0),2) -> 0 | AB43: =U43-W43-X43-Z43+AA43 -> 9500 | AC43: =[2]PORTADA!$D$10 -> 1 | AE43: 22
A44: 24 | D44: REYNAGA LOPEZ NAHSDHELLY ALEJANDRA | H44: AUXILIAR JURIDICO | I44: 15 | J44: TARJETA | L44: 0 | M44: 0 | N44: =3896/15 -> 259.7333333 | O44: =TRUNC(N44*I44,2) -> 3896 | P44: =TRUNC(N44*I44*0.04,2) -> 155.84 | Q44: =TRUNC(N44*0.07*I44,2) -> 272.72 | R44: =L44 -> 0 | S44: =TRUNC(Q44+P44+(IF(R44>519,519,R44))+IF(K44=0,0,K44*N44),2) -> 428.56 | T44: =TRUNC((IF(K44=0,I44*N44,(I44-K44)*N44))+(IF(R44<519,0,R44-519)),2)+M44 -> 3896 | U44: =S44+T44 -> 4324.56 | X44: 0 | Y44: =IF(N44>0.01,(T44-VLOOKUP(T44,quincenal,1))*VLOOKUP(T44,quincenal,3)+VLOOKUP(T44,quincenal,2)-VLOOKUP(T44,subquincenal,2),0) -> 332.4484 | Z44: =TRUNC(IF(Y44>0.01,Y44,0),2) -> 332.44 | AA44: =TRUNC(IF(Y44<0.01,-Y44,0),2) -> 0 | AB44: =U44-W44-X44-Z44+AA44 -> 3992.12 | AE44: 23
D45: CARRILLO MUÑOZ CESAR OMAR | E45: CARH770717 | F45: CARH770717HJCRDG01 | H45: JUEZ MUNICIPAL | I45: 15 | J45: TARJETA | L45: 0 | M45: 0 | N45: =4612/15 -> 307.4666667 | O45: =TRUNC(N45*I45,2) -> 4612 | P45: =TRUNC(N45*I45*0.04,2) -> 184.48 | Q45: =TRUNC(N45*0.07*I45,2) -> 322.84 | R45: =L45 -> 0 | S45: =TRUNC(Q45+P45+(IF(R45>519,519,R45))+IF(K45=0,0,K45*N45),2) -> 507.32 | T45: =TRUNC((IF(K45=0,I45*N45,(I45-K45)*N45))+(IF(R45<519,0,R45-519)),2)+M45 -> 4612 | U45: =S45+T45 -> 5119.32 | X45: 0 | Y45: =IF(N45>0.01,(T45-VLOOKUP(T45,quincenal,1))*VLOOKUP(T45,quincenal,3)+VLOOKUP(T45,quincenal,2)-VLOOKUP(T45,subquincenal,2),0) -> 453.975888 | Z45: =TRUNC(IF(Y45>0.01,Y45,0),2) -> 453.97 | AA45: =TRUNC(IF(Y45<0.01,-Y45,0),2) -> 0 | AB45: =U45-W45-X45-Z45+AA45 -> 4665.35 | AE45: 24
D46: DEPARTAMENTO JURIDICO | O46: =SUM(O43:O45) -> 18495.52 | P46: 739.82 | Q46: 1294.68 | R46: 0 | S46: 2034.5 | T46: 18495.52 | U46: 20530.02 | V46: 0 | W46: 0 | X46: 0 | Y46: 2372.569384 | Z46: 2372.55 | AA46: 0 | AB46: 18157.47
D48: UNIDAD DE TRANSPARENCIA
D49: ALDAZ VELEZ LORENZO MIGUEL | E49: HEEG670312 | F49: HEER670312MJCRNS06 | G49: 2007-01-08 | H49: DIRECTOR DE TRANSPARENCIA | I49: 15 | J49: TARJETA | L49: 0 | M49: 0 | N49: 405.5341 | O49: =TRUNC(N49*I49,2) -> 6083.01 | P49: =TRUNC(N49*I49*0.04,2) -> 243.32 | Q49: =TRUNC(N49*0.07*I49,2) -> 425.81 | R49: =L49 -> 0 | S49: =TRUNC(Q49+P49+(IF(R49>519,519,R49))+IF(K49=0,0,K49*N49),2) -> 669.13 | T49: =TRUNC((IF(K49=0,I49*N49,(I49-K49)*N49))+(IF(R49<519,0,R49-519)),2)+M49 -> 6083.01 | U49: =S49+T49 -> 6752.14 | X49: 0 | Y49: =IF(N49>0.01,(T49-VLOOKUP(T49,quincenal,1))*VLOOKUP(T49,quincenal,3)+VLOOKUP(T49,quincenal,2)-VLOOKUP(T49,subquincenal,2),0) -> 752.14176 | Z49: =TRUNC(IF(Y49>0.01,Y49,0),2) -> 752.14 | AA49: =TRUNC(IF(Y49<0.01,-Y49,0),2) -> 0 | AB49: =U49-W49-X49-Z49+AA49 -> 6000 | AC49: =#REF! ->  | AE49: 25
D50: MONTERO REYES HECTOR CARLOS | E50: PAGM780607 | F50: PAGM780607MJCLRR03 | H50: AUXILIAR DE TRANSPARENCIA | I50: 15 | J50: TARJETA | L50: 0 | M50: 0 | N50: 217.7938 | O50: =TRUNC(N50*I50,2) -> 3266.9 | P50: =TRUNC(N50*I50*0.04,2) -> 130.67 | Q50: =TRUNC(N50*0.07*I50,2) -> 228.68 | R50: =L50 -> 0 | S50: =TRUNC(Q50+P50+(IF(R50>519,519,R50))+IF(K50=0,0,K50*N50),2) -> 359.35 | T50: =TRUNC((IF(K50=0,I50*N50,(I50-K50)*N50))+(IF(R50<519,0,R50-519)),2)+M50 -> 3266.9 | U50: =S50+T50 -> 3626.25 | X50: 0 | Y50: =IF(N50>0.01,(T50-VLOOKUP(T50,quincenal,1))*VLOOKUP(T50,quincenal,3)+VLOOKUP(T50,quincenal,2)-VLOOKUP(T50,subquincenal,2),0) -> 126.255632 | Z50: =TRUNC(IF(Y50>0.01,Y50,0),2) -> 126.25 | AA50: =TRUNC(IF(Y50<0.01,-Y50,0),2) -> 0 | AB50: =U50-W50-X50-Z50+AA50 -> 3500 | AC50: =#REF! ->  | AE50: 26
D51: UNIDAD DE TRANSPARENCIA | O51: =SUM(O49:O50) -> 9349.91 | P51: =SUM(P49:P50) -> 373.99 | Q51: 654.49 | R51: 0 | S51: 1028.48 | T51: 9349.91 | U51: 10378.39 | V51: 0 | W51: 0 | X51: 0 | Y51: 878.397392 | Z51: 878.39 | AA51: 0 | AB51: 9500
D53: DIRECCION DE REGISTRO CIVIL
D54: HERNANDEZ ENRIQUEZ ROSA GUADALUPE | E54: HEEG670312 | F54: HEER670312MJCRNS06 | G54: 2007-01-08 | H54: JEFE OFICIAL DE REGISTRO CIVIL | I54: 15 | J54: TARJETA | L54: 0 | M54: 0 | N54: =4459/15 -> 297.2666667 | O54: =TRUNC(N54*I54,2) -> 4459 | P54: =TRUNC(N54*I54*0.04,2) -> 178.36 | Q54: =TRUNC(N54*0.07*I54,2) -> 312.13 | R54: =L54 -> 0 | S54: =TRUNC(Q54+P54+(IF(R54>519,519,R54))+IF(K54=0,0,K54*N54),2) -> 490.49 | T54: =TRUNC((IF(K54=0,I54*N54,(I54-K54)*N54))+(IF(R54<519,0,R54-519)),2)+M54 -> 4459 | U54: =S54+T54 -> 4949.49 | X54: 0 | Y54: =IF(N54>0.01,(T54-VLOOKUP(T54,quincenal,1))*VLOOKUP(T54,quincenal,3)+VLOOKUP(T54,quincenal,2)-VLOOKUP(T54,subquincenal,2),0) -> 426.558288 | Z54: =TRUNC(IF(Y54>0.01,Y54,0),2) -> 426.55 | AA54: =TRUNC(IF(Y54<0.01,-Y54,0),2) -> 0 | AB54: =U54-W54-X54-Z54+AA54 -> 4522.94 | AC54: =[2]PORTADA!$D$10 -> 1 | AE54: 27
D55: PLASCENCIA GARCIA MIREYA ESMERALDA | E55: PAGM780607 | F55: PAGM780607MJCLRR03 | H55: OFICIAL AUX. DE REGISTRO CIVIL | I55: 15 | J55: TARJETA | L55: 0 | M55: 0 | N55: =2492/15 -> 166.1333333 | O55: =TRUNC(N55*I55,2) -> 2492 | P55: =TRUNC(N55*I55*0.04,2) -> 99.68 | Q55: =TRUNC(N55*0.07*I55,2) -> 174.44 | R55: =L55 -> 0 | S55: =TRUNC(Q55+P55+(IF(R55>519,519,R55))+IF(K55=0,0,K55*N55),2) -> 274.12 | T55: =TRUNC((IF(K55=0,I55*N55,(I55-K55)*N55))+(IF(R55<519,0,R55-519)),2)+M55 -> 2492 | U55: =S55+T55 -> 2766.12 | X55: 0 | Y55: =IF(N55>0.01,(T55-VLOOKUP(T55,quincenal,1))*VLOOKUP(T55,quincenal,3)+VLOOKUP(T55,quincenal,2)-VLOOKUP(T55,subquincenal,2),0) -> 6.696512 | Z55: =TRUNC(IF(Y55>0.01,Y55,0),2) -> 6.69 | AA55: =TRUNC(IF(Y55<0.01,-Y55,0),2) -> 0 | AB55: =U55-W55-X55-Z55+AA55 -> 2759.43 | AC55: =[2]PORTADA!$D$10 -> 1 | AE55: 28
D56: GONZALEZ MARTINEZ KARINA | H56: SECRETARIA EN REGISTRO CIVIL | I56: 15 | J56: TARJETA | L56: 0 | M56: 0 | N56: 147.9015 | O56: =TRUNC(N56*I56,2) -> 2218.52 | P56: =TRUNC(N56*I56*0.04,2) -> 88.74 | Q56: =TRUNC(N56*0.07*I56,2) -> 155.29 | R56: =L56 -> 0 | S56: =TRUNC(Q56+P56+(IF(R56>519,519,R56))+IF(K56=0,0,K56*N56),2) -> 244.03 | T56: =TRUNC((IF(K56=0,I56*N56,(I56-K56)*N56))+(IF(R56<519,0,R56-519)),2)+M56 -> 2218.52 | U56: =S56+T56 -> 2462.55 | Y56: =IF(N56>0.01,(T56-VLOOKUP(T56,quincenal,1))*VLOOKUP(T56,quincenal,3)+VLOOKUP(T56,quincenal,2)-VLOOKUP(T56,subquincenal,2),0) -> -37.458112 | Z56: =TRUNC(IF(Y56>0.01,Y56,0),2) -> 0 | AA56: =TRUNC(IF(Y56<0.01,-Y56,0),2) -> 37.45 | AB56: =U56-W56-X56-Z56+AA56 -> 2500 | AE56: 29
A57: 28 | B57: 1 | C57: 14 | D57: NAVARRO HERNANDEZ ALMA SAGRARIO | H57: ASISTENTE DE REGISTRO CIVIL | I57: 15 | J57: TARJETA | L57: 0 | M57: 0 | N57: 183.152 | O57: =TRUNC(N57*I57,2) -> 2747.28 | P57: =TRUNC(N57*I57*0.04,2) -> 109.89 | Q57: =TRUNC(N57*0.07*I57,2) -> 192.3 | R57: =L57 -> 0 | S57: =TRUNC(Q57+P57+(IF(R57>519,519,R57))+IF(K57=0,0,K57*N57),2) -> 302.19 | T57: =TRUNC((IF(K57=0,I57*N57,(I57-K57)*N57))+(IF(R57<519,0,R57-519)),2)+M57 -> 2747.28 | U57: =S57+T57 -> 3049.47 | X57: 0 | Y57: =IF(N57>0.01,(T57-VLOOKUP(T57,quincenal,1))*VLOOKUP(T57,quincenal,3)+VLOOKUP(T57,quincenal,2)-VLOOKUP(T57,subquincenal,2),0) -> 49.470976 | Z57: =TRUNC(IF(Y57>0.01,Y57,0),2) -> 49.47 | AA57: =TRUNC(IF(Y57<0.01,-Y57,0),2) -> 0 | AB57: =U57-W57-X57-Z57+AA57 -> 3000 | AC57: =#REF! ->  | AE57: 30
D58: DIRECCION DE REGISTRO CIVIL | O58: =SUM(O54:O57) -> 11916.8 | P58: =SUM(P54:P57) -> 476.67 | Q58: 834.16 | R58: 0 | S58: 1310.83 | T58: 11916.8 | U58: 13227.63 | V58: 0 | W58: 0 | X58: 0 | Y58: 445.267664 | Z58: 482.71 | AA58: 37.45 | AB58: 12782.37
D60: OFICIALIA MAYOR DE CULTURA
D61: GONZALEZ PEÑA LETICIA | E61: MAM620222 | H61: DIRECTOR DE CULTURA Y TURISMO | I61: 15 | J61: TARJETA | L61: 0 | M61: 0 | N61: 331.436 | O61: =TRUNC(N61*I61,2) -> 4971.54 | P61: =TRUNC(N61*I61*0.04,2) -> 198.86 | Q61: =TRUNC(N61*0.07*I61,2) -> 348 | R61: =L61 -> 0 | S61: =TRUNC(Q61+P61+(IF(R61>519,519,R61))+IF(K61=0,0,K61*N61),2) -> 546.86 | T61: =TRUNC((IF(K61=0,I61*N61,(I61-K61)*N61))+(IF(R61<519,0,R61-519)),2)+M61 -> 4971.54 | U61: =S61+T61 -> 5518.4 | X61: 0 | Y61: =IF(N61>0.01,(T61-VLOOKUP(T61,quincenal,1))*VLOOKUP(T61,quincenal,3)+VLOOKUP(T61,quincenal,2)-VLOOKUP(T61,subquincenal,2),0) -> 518.405456 | Z61: =TRUNC(IF(Y61>0.01,Y61,0),2) -> 518.4 | AA61: =TRUNC(IF(Y61<0.01,-Y61,0),2) -> 0 | AB61: =U61-W61-X61-Z61+AA61 -> 5000 | AC61: =[3]PORTADA!$D$10 -> 1 | AE61: 31
D62: PARRA RON CARLOS ENRIQUE | E62: PARC480708 | F62: PARC480708HJCRNR08 | G62: 2004-01-01 | H62: CRONISTA | I62: 15 | J62: TARJETA | L62: 0 | M62: 0 | N62: =3463/15 -> 230.8666667 | O62: 3463 | P62: 138.52 | Q62: 242.41 | R62: 0 | S62: 380.93 | T62: 3463 | U62: 3843.93 | X62: 0 | Y62: =IF(N62>0.01,(T62-VLOOKUP(T62,quincenal,1))*VLOOKUP(T62,quincenal,3)+VLOOKUP(T62,quincenal,2)-VLOOKUP(T62,subquincenal,2),0) -> 147.591312 | Z62: 147.59 | AA62: 0 | AB62: 3696.34 | AC62: =[2]PORTADA!$D$10 -> 1 | AE62: 32
D63: GARCIA GONZALEZ JAIRO ESAUD | H63: AUXILIAR DE DIRECCION DE CULTURA Y TURISMO | I63: 15 | J63: TARJETA | L63: 0 | M63: 0 | N63: 165.506 | O63: =TRUNC(N63*I63,2) -> 2482.59 | P63: =TRUNC(N63*I63*0.04,2) -> 99.3 | Q63: =TRUNC(N63*0.07*I63,2) -> 173.78 | R63: =L63 -> 0 | S63: =TRUNC(Q63+P63+(IF(R63>519,519,R63))+IF(K63=0,0,K63*N63),2) -> 273.08 | T63: =TRUNC((IF(K63=0,I63*N63,(I63-K63)*N63))+(IF(R63<519,0,R63-519)),2)+M63 -> 2482.59 | U63: =S63+T63 -> 2755.67 | X63: 0 | Y63: =IF(N63>0.01,(T63-VLOOKUP(T63,quincenal,1))*VLOOKUP(T63,quincenal,3)+VLOOKUP(T63,quincenal,2)-VLOOKUP(T63,subquincenal,2),0) -> 5.672704 | Z63: =TRUNC(IF(Y63>0.01,Y63,0),2) -> 5.67 | AA63: =TRUNC(IF(Y63<0.01,-Y63,0),2) -> 0 | AB63: =U63-W63-X63-Z63+AA63 -> 2750
D64: GONZALEZ JUAREZ ALEJANDRA AMANDA | H64: SECRETARIA DE CASA DE LA CULTURA | I64: 15 | J64: TARJETA | L64: 0 | M64: 0 | N64: 147.9015 | O64: =TRUNC(N64*I64,2) -> 2218.52 | P64: =TRUNC(N64*I64*0.04,2) -> 88.74 | Q64: =TRUNC(N64*0.07*I64,2) -> 155.29 | R64: =L64 -> 0 | S64: =TRUNC(Q64+P64+(IF(R64>519,519,R64))+IF(K64=0,0,K64*N64),2) -> 244.03 | T64: =TRUNC((IF(K64=0,I64*N64,(I64-K64)*N64))+(IF(R64<519,0,R64-519)),2)+M64 -> 2218.52 | U64: =S64+T64 -> 2462.55 | Y64: =IF(N64>0.01,(T64-VLOOKUP(T64,quincenal,1))*VLOOKUP(T64,quincenal,3)+VLOOKUP(T64,quincenal,2)-VLOOKUP(T64,subquincenal,2),0) -> -37.458112 | Z64: 0 | AA64: 37.45 | AB64: =U64-W64-X64-Z64+AA64 -> 2500 | AE64: 33
D65: GALLEGOS PEREZ DIEGO ARMANDO | H65: ENCARGADO DE LA CULTURA DEL AGUA | I65: 15 | J65: TARJETA | L65: 0 | M65: 0 | N65: 172.831 | O65: =TRUNC(N65*I65,2) -> 2592.46 | P65: =TRUNC(N65*I65*0.04,2) -> 103.69 | Q65: =TRUNC(N65*0.07*I65,2) -> 181.47 | R65: =L65 -> 0 | S65: =TRUNC(Q65+P65+(IF(R65>519,519,R65))+IF(K65=0,0,K65*N65),2) -> 285.16 | T65: =TRUNC((IF(K65=0,I65*N65,(I65-K65)*N65))+(IF(R65<519,0,R65-519)),2)+M65 -> 2592.46 | U65: =S65+T65 -> 2877.62 | Y65: =IF(N65>0.01,(T65-VLOOKUP(T65,quincenal,1))*VLOOKUP(T65,quincenal,3)+VLOOKUP(T65,quincenal,2)-VLOOKUP(T65,subquincenal,2),0) -> 17.62656 | Z65: =TRUNC(IF(Y65>0.01,Y65,0),2) -> 17.62 | AA65: =TRUNC(IF(Y65<0.01,-Y65,0),2) -> 0 | AB65: =U65-W65-X65-Z65+AA65 -> 2860 | AE65: 34
D66: ESPARZA ZAVALZA INDALECIO | H66: MAESTRO DE MUSICA | I66: 15 | J66: TARJETA | L66: 0 | M66: 0 | N66: 154.56 | O66: =TRUNC(N66*I66,2) -> 2318.4 | P66: =TRUNC(N66*I66*0.04,2) -> 92.73 | Q66: =TRUNC(N66*0.07*I66,2) -> 162.28 | R66: =L66 -> 0 | S66: =TRUNC(Q66+P66+(IF(R66>519,519,R66))+IF(K66=0,0,K66*N66),2) -> 255.01 | T66: =TRUNC((IF(K66=0,I66*N66,(I66-K66)*N66))+(IF(R66<519,0,R66-519)),2)+M66 -> 2318.4 | U66: =S66+T66 -> 2573.41 | Y66: =IF(N66>0.01,(T66-VLOOKUP(T66,quincenal,1))*VLOOKUP(T66,quincenal,3)+VLOOKUP(T66,quincenal,2)-VLOOKUP(T66,subquincenal,2),0) -> -26.591168 | Z66: 0 | AA66: 26.59 | AB66: =U66-W66-X66-Z66+AA66 -> 2600 | AE66: 35
D67: CARRILLO DIAZ ANTONIO SALVADOR | H67: INTENDENTE | I67: 15 | J67: TARJETA | L67: 0 | M67: 0 | N67: 113.977 | O67: =TRUNC(N67*I67,2) -> 1709.65 | P67: =TRUNC(N67*I67*0.04,2) -> 68.38 | Q67: =TRUNC(N67*0.07*I67,2) -> 119.67 | R67: =L67 -> 0 | S67: =TRUNC(Q67+P67+(IF(R67>519,519,R67))+IF(K67=0,0,K67*N67),2) -> 188.05 | T67: =TRUNC((IF(K67=0,I67*N67,(I67-K67)*N67))+(IF(R67<519,0,R67-519)),2)+M67 -> 1709.65 | U67: =S67+T67 -> 1897.7 | X67: 0 | Y67: =IF(N67>0.01,(T67-VLOOKUP(T67,quincenal,1))*VLOOKUP(T67,quincenal,3)+VLOOKUP(T67,quincenal,2)-VLOOKUP(T67,subquincenal,2),0) -> -102.30024 | Z67: 0 | AA67: 102.3 | AB67: =U67-W67-X67-Z67+AA67 -> 2000 | AE67: 36
D68: ARCINIEGA RODRIGUEZ ANTONIO | H68: ENCARGADO DE EQUIPO DE SONIDO | I68: 15 | J68: TARJETA | L68: 0 | M68: 0 | N68: =4060/15 -> 270.6666667 | O68: 4060 | P68: 162.4 | Q68: 284.2 | R68: 0 | S68: 446.6 | T68: 4060 | U68: 4506.6 | X68: 0 | Y68: =IF(N68>0.01,(T68-VLOOKUP(T68,quincenal,1))*VLOOKUP(T68,quincenal,3)+VLOOKUP(T68,quincenal,2)-VLOOKUP(T68,subquincenal,2),0) -> 358.6884 | Z68: 358.68 | AA68: 0 | AB68: 4147.92 | AC68: =[2]PORTADA!$D$10 -> 1 | AE68: 37
D69: OFICIALIA MAYOR DE CULTURA | O69: =SUM(O61:O68) -> 23816.16 | P69: =SUM(P61:P68) -> 952.62 | Q69: 1667.1 | R69: 0 | S69: 2619.72 | T69: 23816.16 | U69: 26435.88 | V69: 0 | W69: 0 | X69: 0 | Y69: 881.634912 | Z69: 1047.96 | AA69: 166.34 | AB69: 25554.26
D71: DEPARTAMENTO DE PRENSA Y PUBLICIDAD
A72: 35 | B72: 1 | C72: 19 | D72: DIAZ PEREZ SAMUEL | H72: DIRECTOR DE PRENSA Y PUBLICIDAD | I72: 15 | J72: TARJETA | L72: 0 | M72: 0 | N72: 405.5341 | O72: =TRUNC(N72*I72,2) -> 6083.01 | P72: =TRUNC(N72*I72*0.04,2) -> 243.32 | Q72: =TRUNC(N72*0.07*I72,2) -> 425.81 | R72: =L72 -> 0 | S72: =TRUNC(Q72+P72+(IF(R72>519,519,R72))+IF(K72=0,0,K72*N72),2) -> 669.13 | T72: =TRUNC((IF(K72=0,I72*N72,(I72-K72)*N72))+(IF(R72<519,0,R72-519)),2)+M72 -> 6083.01 | U72: =S72+T72 -> 6752.14 | X72: 0 | Y72: =IF(N72>0.01,(T72-VLOOKUP(T72,quincenal,1))*VLOOKUP(T72,quincenal,3)+VLOOKUP(T72,quincenal,2)-VLOOKUP(T72,subquincenal,2),0) -> 752.14176 | Z72: =TRUNC(IF(Y72>0.01,Y72,0),2) -> 752.14 | AA72: =TRUNC(IF(Y72<0.01,-Y72,0),2) -> 0 | AB72: =U72-W72-X72-Z72+AA72 -> 6000 | AC72: =#REF! ->  | AE72: 38
A73: 36 | D73: GOMEZ SANTIAGO MARIA DOLORES | H73: SECRETARIA DE COMUNICACIÓN SOCIAL | I73: 15 | J73: TARJETA | L73: 0 | M73: 0 | N73: 101.23 | O73: =TRUNC(N73*I73,2) -> 1518.45 | P73: =TRUNC(N73*I73*0.04,2) -> 60.73 | Q73: =TRUNC(N73*0.07*I73,2) -> 106.29 | R73: =L73 -> 0 | S73: =TRUNC(Q73+P73+(IF(R73>519,519,R73))+IF(K73=0,0,K73*N73),2) -> 167.02 | T73: =TRUNC((IF(K73=0,I73*N73,(I73-K73)*N73))+(IF(R73<519,0,R73-519)),2)+M73 -> 1518.45 | U73: =S73+T73 -> 1685.47 | W73: 0 | X73: 0 | Y73: =IF(N73>0.01,(T73-VLOOKUP(T73,quincenal,1))*VLOOKUP(T73,quincenal,3)+VLOOKUP(T73,quincenal,2)-VLOOKUP(T73,subquincenal,2),0) -> -114.53704 | Z73: =TRUNC(IF(Y73>0.01,Y73,0),2) -> 0 | AA73: =TRUNC(IF(Y73<0.01,-Y73,0),2) -> 114.53 | AB73: =U73-W73-X73-Z73+AA73 -> 1800 | AC73: =#REF! ->  | AE73: 39
D74: VAZQUEZ PEREZ LUIS ENRIQUE | H74: AUXILIAR DE COMUNICACIÓN SOCIAL (FOTOGRAFO Y VIDEO) | I74: 15 | J74: TARJETA | L74: 0 | M74: 0 | N74: 183.152 | O74: =TRUNC(N74*I74,2) -> 2747.28 | P74: =TRUNC(N74*I74*0.04,2) -> 109.89 | Q74: =TRUNC(N74*0.07*I74,2) -> 192.3 | R74: =L74 -> 0 | S74: =TRUNC(Q74+P74+(IF(R74>519,519,R74))+IF(K74=0,0,K74*N74),2) -> 302.19 | T74: =TRUNC((IF(K74=0,I74*N74,(I74-K74)*N74))+(IF(R74<519,0,R74-519)),2)+M74 -> 2747.28 | U74: =S74+T74 -> 3049.47 | X74: 0 | Y74: =IF(N74>0.01,(T74-VLOOKUP(T74,quincenal,1))*VLOOKUP(T74,quincenal,3)+VLOOKUP(T74,quincenal,2)-VLOOKUP(T74,subquincenal,2),0) -> 49.470976 | Z74: =TRUNC(IF(Y74>0.01,Y74,0),2) -> 49.47 | AA74: =TRUNC(IF(Y74<0.01,-Y74,0),2) -> 0 | AB74: =U74-W74-X74-Z74+AA74 -> 3000 | AE74: 40
D75: DEPARTAMENTO DE PRENSA Y PUBLICIDAD | O75: =SUM(O72:O74) -> 10348.74 | P75: =SUM(P72:P74) -> 413.94 | Q75: 724.4 | R75: 0 | S75: 1138.34 | T75: 10348.74 | U75: 11487.08 | V75: 0 | W75: 0 | X75: 0 | Y75: 687.075696 | Z75: 801.61 | AA75: 114.53 | AB75: 10800
D77: DIRECCION DE EDUCACION
A78: 37 | D78: MARISCAL MORALES ILIANA PATRICIA | H78: SUBDIRECTORA DE TALLERES DE CAPACITACION | I78: 15 | J78: TARJETA | L78: 0 | M78: 0 | N78: 217.7938 | O78: =TRUNC(N78*I78,2) -> 3266.9 | P78: =TRUNC(N78*I78*0.04,2) -> 130.67 | Q78: =TRUNC(N78*0.07*I78,2) -> 228.68 | R78: =L78 -> 0 | S78: =TRUNC(Q78+P78+(IF(R78>519,519,R78))+IF(K78=0,0,K78*N78),2) -> 359.35 | T78: =TRUNC((IF(K78=0,I78*N78,(I78-K78)*N78))+(IF(R78<519,0,R78-519)),2)+M78 -> 3266.9 | U78: =S78+T78 -> 3626.25 | X78: 0 | Y78: =IF(N78>0.01,(T78-VLOOKUP(T78,quincenal,1))*VLOOKUP(T78,quincenal,3)+VLOOKUP(T78,quincenal,2)-VLOOKUP(T78,subquincenal,2),0) -> 126.255632 | Z78: =TRUNC(IF(Y78>0.01,Y78,0),2) -> 126.25 | AA78: =TRUNC(IF(Y78<0.01,-Y78,0),2) -> 0 | AB78: =U78-W78-X78-Z78+AA78 -> 3500 | AE78: 41
D79: ESPERICUETA HERNANDEZ EFRAIN | H79: TALLERES DE CAPACITACION | I79: 15 | J79: TARJETA | L79: 0 | M79: 0 | N79: 260.287 | O79: =TRUNC(N79*I79,2) -> 3904.3 | P79: =TRUNC(N79*I79*0.04,2) -> 156.17 | Q79: =TRUNC(N79*0.07*I79,2) -> 273.3 | R79: =L79 -> 0 | S79: =TRUNC(Q79+P79+(IF(R79>519,519,R79))+IF(K79=0,0,K79*N79),2) -> 429.47 | T79: =TRUNC((IF(K79=0,I79*N79,(I79-K79)*N79))+(IF(R79<519,0,R79-519)),2)+M79 -> 3904.3 | U79: =S79+T79 -> 4333.77 | X79: 0 | Y79: =IF(N79>0.01,(T79-VLOOKUP(T79,quincenal,1))*VLOOKUP(T79,quincenal,3)+VLOOKUP(T79,quincenal,2)-VLOOKUP(T79,subquincenal,2),0) -> 333.7764 | Z79: =TRUNC(IF(Y79>0.01,Y79,0),2) -> 333.77 | AA79: =TRUNC(IF(Y79<0.01,-Y79,0),2) -> 0 | AB79: =U79-W79-X79-Z79+AA79 -> 4000 | AE79: 42
D80: MADRID ZAINES DELIA CAROLINA | H80: SECRETARIA DE DIRECTOR DE EDUCACION | I80: 15 | J80: TARJETA | L80: 0 | M80: 0 | N80: 183.152 | O80: =TRUNC(N80*I80,2) -> 2747.28 | P80: =TRUNC(N80*I80*0.04,2) -> 109.89 | Q80: =TRUNC(N80*0.07*I80,2) -> 192.3 | R80: =L80 -> 0 | S80: =TRUNC(Q80+P80+(IF(R80>519,519,R80))+IF(K80=0,0,K80*N80),2) -> 302.19 | T80: =TRUNC((IF(K80=0,I80*N80,(I80-K80)*N80))+(IF(R80<519,0,R80-519)),2)+M80 -> 2747.28 | U80: =S80+T80 -> 3049.47 | X80: 0 | Y80: =IF(N80>0.01,(T80-VLOOKUP(T80,quincenal,1))*VLOOKUP(T80,quincenal,3)+VLOOKUP(T80,quincenal,2)-VLOOKUP(T80,subquincenal,2),0) -> 49.470976 | Z80: =TRUNC(IF(Y80>0.01,Y80,0),2) -> 49.47 | AA80: =TRUNC(IF(Y80<0.01,-Y80,0),2) -> 0 | AB80: =U80-W80-X80-Z80+AA80 -> 3000 | AE80: 43
A81: 37 | D81: GAVILANES NAVARRO JOSE RICARDO | H81: CHIOFER CAMION ESTUDIANTES | I81: 6 | J81: TARJETA | L81: 0 | M81: 0 | N81: 191.1428 | O81: =TRUNC(N81*I81,2) -> 1146.85 | P81: =TRUNC(N81*I81*0.04,2) -> 45.87 | Q81: =TRUNC(N81*0.07*I81,2) -> 80.27 | R81: =L81 -> 0 | S81: =TRUNC(Q81+P81+(IF(R81>519,519,R81))+IF(K81=0,0,K81*N81),2) -> 126.14 | T81: =TRUNC((IF(K81=0,I81*N81,(I81-K81)*N81))+(IF(R81<519,0,R81-519)),2)+M81 -> 1146.85 | U81: =S81+T81 -> 1272.99 | X81: 0 | Y81: =IF(N81>0.01,(T81-VLOOKUP(T81,quincenal,1))*VLOOKUP(T81,quincenal,3)+VLOOKUP(T81,quincenal,2)-VLOOKUP(T81,subquincenal,2),0) -> -138.31944 | Z81: =TRUNC(IF(Y81>0.01,Y81,0),2) -> 0 | AA81: =TRUNC(IF(Y81<0.01,-Y81,0),2) -> 138.31 | AB81: =U81-W81-X81-Z81+AA81 -> 1411.3 | AC81: =#REF! ->  | AE81: 44
D82: DIRECCION DE EDUCACION | O82: =SUM(O78:O81) -> 11065.33 | P82: =SUM(P78:P81) -> 442.6 | Q82: 774.55 | R82: 0 | S82: 1217.15 | T82: 11065.33 | U82: 12282.48 | V82: 0 | W82: 0 | X82: 0 | Y82: 371.183568 | Z82: 509.49 | AA82: 138.31 | AB82: 11911.3
D84: DEPARTAMENTO DE PROMOCION Y DESARROLLO ECONOMICO
A85: 38 | D85: RODRIGUEZ ARQUIETA FAUSTO RAFAEL | H85: DIRECTOR | I85: 15 | J85: TARJETA | L85: 0 | M85: 0 | N85: 479.9059 | O85: =TRUNC(N85*I85,2) -> 7198.58 | P85: =TRUNC(N85*I85*0.04,2) -> 287.94 | Q85: =TRUNC(N85*0.07*I85,2) -> 503.9 | R85: =L85 -> 0 | S85: =TRUNC(Q85+P85+(IF(R85>519,519,R85))+IF(K85=0,0,K85*N85),2) -> 791.84 | T85: =TRUNC((IF(K85=0,I85*N85,(I85-K85)*N85))+(IF(R85<519,0,R85-519)),2)+M85 -> 7198.58 | U85: =S85+T85 -> 7990.42 | X85: 0 | Y85: =IF(N85>0.01,(T85-VLOOKUP(T85,quincenal,1))*VLOOKUP(T85,quincenal,3)+VLOOKUP(T85,quincenal,2)-VLOOKUP(T85,subquincenal,2),0) -> 990.427512 | Z85: =TRUNC(IF(Y85>0.01,Y85,0),2) -> 990.42 | AA85: =TRUNC(IF(Y85<0.01,-Y85,0),2) -> 0 | AB85: =U85-W85-X85-Z85+AA85 -> 7000 | AE85: 45
D86: HERNANDEZ ENRIQUEZ J. FILEMON | H86: DIRECTOR DE PROMOCION ECONOMICA | I86: 15 | J86: TARJETA | L86: 0 | M86: 0 | N86: 442.72 | O86: 6640.8 | P86: 265.63 | Q86: 464.85 | R86: 0 | S86: 730.48 | T86: 6640.8 | U86: 7371.28 | X86: 0 | Y86: 871.285704 | Z86: 871.28 | AA86: =TRUNC(IF(Y86<0.01,-Y86,0),2) -> 0 | AB86: 6500 | AE86: 46
D87: PLASCENCIA GARCIA OSCARI | E87: PAGO721112 | F87: PAGO721112HJCLRS01 | H87: AUXILIAR ADMINISTRATIVO DE DESARROLLO RURAL | I87: 15 | J87: TARJETA | L87: 0 | M87: 0 | N87: =3086/15 -> 205.7333333 | O87: 3086 | P87: 123.44 | Q87: 216.02 | R87: 0 | S87: 339.46 | T87: 3086 | U87: 3425.46 | X87: 0 | Y87: 106.573712 | Z87: 106.57 | AA87: =TRUNC(IF(Y87<0.01,-Y87,0),2) -> 0 | AB87: 3318.89 | AE87: 47
D88: MARTINEZ MARTINEZ SALVADOR TAURINO JONATHAN | E88: MAMS900118M80 | F88: MAMS900118HJCRRL02 | G88: 2007-01-01 | H88: AYUDANTE | I88: 15 | J88: TARJETA | L88: 0 | M88: 0 | N88: =2788/15 -> 185.8666667 | O88: 2788 | P88: 111.52 | Q88: 195.16 | R88: 0 | S88: 306.68 | T88: 2788 | U88: 3094.68 | X88: 0 | Y88: 53.901312 | Z88: 53.9 | AA88: 0 | AB88: 3040.78 | AC88: =[2]PORTADA!$D$10 -> 1 | AE88: 48
D89: ULLOA MARTINEZ MARCELA GUADALUPE | E89: UOMM730612 | F89: UOMM730612MJCLRR02 | G89: 1998-01-01 | H89: AUXILIAR ADMINISTRATIVO | I89: 15 | J89: TARJETA | L89: 0 | M89: 0 | N89: =3261/15 -> 217.4 | O89: 3261 | P89: 130.44 | Q89: 228.27 | R89: 0 | S89: 358.71 | T89: 3261 | U89: 3619.71 | X89: 0 | Y89: 125.613712 | Z89: 125.61 | AA89: =TRUNC(IF(Y89<0.01,-Y89,0),2) -> 0 | AB89: 3494.1 | AC89: =[2]PORTADA!$D$10 -> 1 | AE89: 49
D90: GONZALEZ MARTINEZ ERIKA DELFINA | E90: FEIA870704 | F90: FEIA870704MJCRXN02 | H90: SECRETARIA | I90: 15 | J90: TARJETA | L90: 0 | M90: 0 | N90: =2658/15 -> 177.2 | O90: 2658 | P90: 106.32 | Q90: 186.06 | R90: 0 | S90: 292.38 | T90: 2658 | U90: 2950.38 | W90: 0 | X90: 0 | Y90: 39.757312 | Z90: 39.75 | AA90: =TRUNC(IF(Y90<0.01,-Y90,0),2) -> 0 | AB90: 2910.63 | AC90: =[2]PORTADA!$D$10 -> 1 | AE90: 50
D91: DEPARTAMENTO DE PROMOCION Y DESARROLLO ECONOMICO | O91: =SUM(O85:O90) -> 25632.38 | P91: =SUM(P85:P90) -> 1025.29 | Q91: 1794.26 | R91: 0 | S91: 2819.55 | T91: 25632.38 | U91: 28451.93 | V91: 0 | W91: 0 | X91: 0 | Y91: 2187.559264 | Z91: 2187.53 | AA91: 0 | AB91: 26264.4
D93: OFICINA DE ENLACE RELACIONES EXTERIORES
D94: GUTIERREZ REYES CAROL | E94: GURC680410 | F94: GURC680410MJCTYR00 | G94: 2001-01-02 | H94: JEFE ADMINISTRADOR | I94: 9 | J94: TARJETA | L94: 0 | M94: 0 | N94: 370.2 | O94: =TRUNC(N94*I94,2) -> 3331.8 | P94: =TRUNC(N94*I94*0.04,2) -> 133.27 | Q94: =TRUNC(N94*0.07*I94,2) -> 233.22 | R94: =L94 -> 0 | S94: =TRUNC(Q94+P94+(IF(R94>519,519,R94))+IF(K94=0,0,K94*N94),2) -> 366.49 | T94: =TRUNC((IF(K94=0,I94*N94,(I94-K94)*N94))+(IF(R94<519,0,R94-519)),2)+M94 -> 3331.8 | U94: =S94+T94 -> 3698.29 | X94: 0 | Y94: =IF(N94>0.01,(T94-VLOOKUP(T94,quincenal,1))*VLOOKUP(T94,quincenal,3)+VLOOKUP(T94,quincenal,2)-VLOOKUP(T94,subquincenal,2),0) -> 133.316752 | Z94: =TRUNC(IF(Y94>0.01,Y94,0),2) -> 133.31 | AA94: =TRUNC(IF(Y94<0.01,-Y94,0),2) -> 0 | AB94: =U94-W94-X94-Z94+AA94 -> 3564.98 | AC94: =[2]PORTADA!$D$10 -> 1 | AE94: 51
D95: FREGOSO HURTADO ALEJANDRA | E95: FEHA831218 | F95: FEHA831218MJCRRL07 | G95: 2007-04-10 | H95: AUX. ADMINISTRATIVO | I95: 15 | J95: TARJETA | L95: 0 | M95: 0 | N95: 211.816 | O95: =TRUNC(N95*I95,2) -> 3177.24 | P95: =TRUNC(N95*I95*0.04,2) -> 127.08 | Q95: =TRUNC(N95*0.07*I95,2) -> 222.4 | R95: =L95 -> 0 | S95: =TRUNC(Q95+P95+(IF(R95>519,519,R95))+IF(K95=0,0,K95*N95),2) -> 349.48 | T95: =TRUNC((IF(K95=0,I95*N95,(I95-K95)*N95))+(IF(R95<519,0,R95-519)),2)+M95 -> 3177.24 | U95: =S95+T95 -> 3526.72 | X95: 0 | Y95: =IF(N95>0.01,(T95-VLOOKUP(T95,quincenal,1))*VLOOKUP(T95,quincenal,3)+VLOOKUP(T95,quincenal,2)-VLOOKUP(T95,subquincenal,2),0) -> 116.500624 | Z95: =TRUNC(IF(Y95>0.01,Y95,0),2) -> 116.5 | AA95: =TRUNC(IF(Y95<0.01,-Y95,0),2) -> 0 | AB95: =U95-W95-X95-Z95+AA95 -> 3410.22 | AC95: =[2]PORTADA!$D$10 -> 1 | AE95: 52
D96: LOPEZ MARTINEZ YVETTE AMALIA MARGARITA | E96: LOMY681017 | F96: LOMY681017MJCPRV08 | G96: 2001-01-01 | H96: SUPERVISOR | I96: 15 | J96: TARJETA | L96: 0 | M96: 0 | N96: 211.816 | O96: =TRUNC(N96*I96,2) -> 3177.24 | P96: =TRUNC(N96*I96*0.04,2) -> 127.08 | Q96: =TRUNC(N96*0.07*I96,2) -> 222.4 | R96: =L96 -> 0 | S96: =TRUNC(Q96+P96+(IF(R96>519,519,R96))+IF(K96=0,0,K96*N96),2) -> 349.48 | T96: =TRUNC((IF(K96=0,I96*N96,(I96-K96)*N96))+(IF(R96<519,0,R96-519)),2)+M96 -> 3177.24 | U96: =S96+T96 -> 3526.72 | X96: 0 | Y96: =IF(N96>0.01,(T96-VLOOKUP(T96,quincenal,1))*VLOOKUP(T96,quincenal,3)+VLOOKUP(T96,quincenal,2)-VLOOKUP(T96,subquincenal,2),0) -> 116.500624 | Z96: =TRUNC(IF(Y96>0.01,Y96,0),2) -> 116.5 | AA96: =TRUNC(IF(Y96<0.01,-Y96,0),2) -> 0 | AB96: =U96-W96-X96-Z96+AA96 -> 3410.22 | AC96: =[2]PORTADA!$D$10 -> 1 | AE96: 53
D97: ESTRADA GOMEZ JUAN CARLOS | E97: EAGJ510220NR1 | F97: EAGJ510220HJCSMN09 | H97: MENSAJERO | I97: 15 | J97: TARJETA | L97: 0 | M97: 0 | N97: 216.7235 | O97: =TRUNC(N97*I97,2) -> 3250.85 | P97: =TRUNC(N97*I97*0.04,2) -> 130.03 | Q97: =TRUNC(N97*0.07*I97,2) -> 227.55 | R97: =L97 -> 0 | S97: =TRUNC(Q97+P97+(IF(R97>519,519,R97))+IF(K97=0,0,K97*N97),2) -> 357.58 | T97: =TRUNC((IF(K97=0,I97*N97,(I97-K97)*N97))+(IF(R97<519,0,R97-519)),2)+M97 -> 3250.85 | U97: =S97+T97 -> 3608.43 | W97: 0 | X97: 0 | Y97: =IF(N97>0.01,(T97-VLOOKUP(T97,quincenal,1))*VLOOKUP(T97,quincenal,3)+VLOOKUP(T97,quincenal,2)-VLOOKUP(T97,subquincenal,2),0) -> 124.509392 | Z97: =TRUNC(IF(Y97>0.01,Y97,0),2) -> 124.5 | AA97: =TRUNC(IF(Y97<0.01,-Y97,0),2) -> 0 | AB97: =U97-W97-X97-Z97+AA97 -> 3483.93 | AC97: =[2]PORTADA!$D$10 -> 1 | AE97: 54
D98: OFICINA DE ENLACE RELACIONES EXTERIORES | O98: =SUM(O94:O97) -> 12937.13 | P98: 517.46 | Q98: 905.57 | R98: 0 | S98: 1423.03 | T98: 12937.13 | U98: 14360.16 | V98: 0 | W98: 0 | X98: 0 | Y98: 490.827392 | Z98: 490.81 | AA98: 0 | AB98: 13869.35
D100: AGENCIAS MUNICIPALES
A101: 46 | B101: 2 | C101: 2 | D101: GOMEZ HERNANDEZ FRANCISCO JAVIER | H101: AGENTE MUNICIPAL STA. ROSALIA | I101: 15 | J101: TARJETA | L101: 0 | M101: 0 | N101: 101.23 | O101: =TRUNC(N101*I101,2) -> 1518.45 | P101: =TRUNC(N101*I101*0.04,2) -> 60.73 | Q101: =TRUNC(N101*0.07*I101,2) -> 106.29 | R101: =L101 -> 0 | S101: =TRUNC(Q101+P101+(IF(R101>519,519,R101))+IF(K101=0,0,K101*N101),2) -> 167.02 | T101: =TRUNC((IF(K101=0,I101*N101,(I101-K101)*N101))+(IF(R101<519,0,R101-519)),2)+M101 -> 1518.45 | U101: =S101+T101 -> 1685.47 | X101: 0 | Y101: =IF(N101>0.01,(T101-VLOOKUP(T101,quincenal,1))*VLOOKUP(T101,quincenal,3)+VLOOKUP(T101,quincenal,2)-VLOOKUP(T101,subquincenal,2),0) -> -114.53704 | Z101: =TRUNC(IF(Y101>0.01,Y101,0),2) -> 0 | AA101: =TRUNC(IF(Y101<0.01,-Y101,0),2) -> 114.53 | AB101: =U101-W101-X101-Z101+AA101 -> 1800 | AC101: =#REF! ->  | AE101: 55
A102: 47 | B102: 2 | C102: 2 | D102: BERNAL LOPEZ JUAN MANUEL | E102: PALR | H102: AGENTE MUNICIPAL SAN RAFAEL | I102: 15 | J102: TARJETA | L102: 0 | M102: 0 | N102: 82.1097 | O102: 1231.64 | P102: 49.26 | Q102: 86.21 | R102: 0 | S102: 135.47 | T102: 1231.64 | U102: 1367.11 | X102: 0 | Y102: -132.89288 | Z102: =TRUNC(IF(Y102>0.01,Y102,0),2) -> 0 | AA102: =TRUNC(IF(Y102<0.01,-Y102,0),2) -> 132.89 | AB102: 1500 | AC102: =#REF! ->  | AE102: 56
A103: 48 | B103: 2 | C103: 2 | D103: GONZALEZ RUIZ JOSE ANGEL | E103: GORA710130M39 | F103: GORA710130HJCNZN08 | H103: AGENTE MUNICIPAL SAN SEBASTIAN | I103: 15 | J103: TARJETA | L103: 0 | M103: 0 | N103: 75.7359 | O103: 1136.03 | P103: 45.44 | Q103: 79.52 | R103: 0 | S103: 124.96 | T103: 1136.03 | U103: 1260.99 | X103: 0 | Y103: -139.01192 | Z103: =TRUNC(IF(Y103>0.01,Y103,0),2) -> 0 | AA103: =TRUNC(IF(Y103<0.01,-Y103,0),2) -> 139.01 | AB103: 1400 | AC103: =#REF! ->  | AE103: 57
A104: 49 | B104: 2 | C104: 2 | D104: SIERRA LLAMAS JUAN JOSE | E104: SILJ660418 | F104: SILJ660418HJCRLN17 | H104: AGENTE MUNICIPAL DE PUERTA DE PERICOS | I104: 15 | J104: TARJETA | L104: 0 | M104: 0 | N104: 88.4834 | O104: 1327.25 | P104: 53.09 | Q104: 92.9 | R104: 0 | S104: 145.99 | T104: 1327.25 | U104: 1473.24 | X104: 0 | Y104: -126.77384 | Z104: =TRUNC(IF(Y104>0.01,Y104,0),2) -> 0 | AA104: =TRUNC(IF(Y104<0.01,-Y104,0),2) -> 126.77 | AB104: 1600.01 | AC104: =#REF! ->  | AE104: 58
D105: NAVARRO AYON RAUL JAIME | H105: AGENTE MUNICIPAL DE LA MAZATA | I105: 15 | J105: TARJETA | L105: 0 | M105: 0 | N105: 82.1097 | O105: =TRUNC(N105*I105,2) -> 1231.64 | P105: =TRUNC(N105*I105*0.04,2) -> 49.26 | Q105: =TRUNC(N105*0.07*I105,2) -> 86.21 | R105: =L105 -> 0 | S105: =TRUNC(Q105+P105+(IF(R105>519,519,R105))+IF(K105=0,0,K105*N105),2) -> 135.47 | T105: =TRUNC((IF(K105=0,I105*N105,(I105-K105)*N105))+(IF(R105<519,0,R105-519)),2)+M105 -> 1231.64 | U105: =S105+T105 -> 1367.11 | X105: 0 | Y105: =IF(N105>0.01,(T105-VLOOKUP(T105,quincenal,1))*VLOOKUP(T105,quincenal,3)+VLOOKUP(T105,quincenal,2)-VLOOKUP(T105,subquincenal,2),0) -> -132.89288 | Z105: 0 | AA105: 132.89 | AB105: =U105-W105-X105-Z105+AA105 -> 1500 | AE105: 59
D106: PEREZ LLAMAS SAMUEL | H106: AGENTE MUNICIPAL DE LA QUEBRADA | I106: 15 | J106: TARJETA | L106: 0 | M106: 0 | N106: 113.977 | O106: 1709.65 | P106: 68.38 | Q106: 119.67 | R106: 0 | S106: 188.05 | T106: 1709.65 | U106: 1897.7 | X106: 0 | Y106: -102.30024 | Z106: 0 | AA106: 102.3 | AB106: 2000 | AE106: 60
A107: 54 | D107: SANCHEZ NAVARRO ARTURO | H107: ASEO LA MAZATA | I107: 15 | J107: TARJETA | N107: 90.65 | O107: =TRUNC(N107*I107,2) -> 1359.75 | P107: =TRUNC(N107*I107*0.04,2) -> 54.39 | Q107: =TRUNC(N107*0.07*I107,2) -> 95.18 | R107: =L107 -> 0 | S107: =TRUNC(Q107+P107+(IF(R107>519,519,R107))+IF(K107=0,0,K107*N107),2) -> 149.57 | T107: =TRUNC((IF(K107=0,I107*N107,(I107-K107)*N107))+(IF(R107<519,0,R107-519)),2)+M107 -> 1359.75 | U107: =S107+T107 -> 1509.32 | X107: 0 | Y107: =IF(N107>0.01,(T107-VLOOKUP(T107,quincenal,1))*VLOOKUP(T107,quincenal,3)+VLOOKUP(T107,quincenal,2)-VLOOKUP(T107,subquincenal,2),0) -> -124.69384 | Z107: =TRUNC(IF(Y107>0.01,Y107,0),2) -> 0 | AA107: =TRUNC(IF(Y107<0.01,-Y107,0),2) -> 124.69 | AB107: =U107-W107-X107-Z107+AA107 -> 1634.01 | AE107: 61
D108: LOPEZ SILVA CARLOS DAMIAN | E108: GOHV780710 | F108: GOHV780710HJCMRL00 | G108: 2007-02-01 | H108: CHOFER RECOLECTOR | I108: 15 | J108: TARJETA | L108: 0 | M108: 0 | N108: =2530/15 -> 168.6666667 | O108: =TRUNC(N108*I108,2) -> 2530 | P108: =TRUNC(N108*I108*0.04,2) -> 101.2 | Q108: =TRUNC(N108*0.07*I108,2) -> 177.1 | R108: =L108 -> 0 | S108: =TRUNC(Q108+P108+(IF(R108>519,519,R108))+IF(K108=0,0,K108*N108),2) -> 278.3 | T108: =TRUNC((IF(K108=0,I108*N108,(I108-K108)*N108))+(IF(R108<519,0,R108-519)),2)+M108 -> 2530 | U108: =S108+T108 -> 2808.3 | X108: 0 | Y108: =IF(N108>0.01,(T108-VLOOKUP(T108,quincenal,1))*VLOOKUP(T108,quincenal,3)+VLOOKUP(T108,quincenal,2)-VLOOKUP(T108,subquincenal,2),0) -> 10.830912 | Z108: =TRUNC(IF(Y108>0.01,Y108,0),2) -> 10.83 | AA108: =TRUNC(IF(Y108<0.01,-Y108,0),2) -> 0 | AB108: =U108-W108-X108-Z108+AA108 -> 2797.47 | AC108: =[2]PORTADA!$D$10 -> 1 | AE108: 62
D109: AGENCIAS MUNICIPALES | O109: =SUM(O101:O108) -> 12044.41 | P109: =SUM(P101:P108) -> 481.75 | Q109: 843.08 | R109: 0 | S109: 1324.83 | T109: 12044.41 | U109: 13369.24 | V109: 0 | W109: 0 | X109: 0 | Y109: -862.271728 | Z109: 10.83 | AA109: 873.08 | AB109: 14231.49
D111: ADMIN ISTRACION DE LA HACIENDA MUNICIPAL
A112: 56 | B112: 3 | C112: 1 | D112: CAMARENA GONZALEZ RUBIO MARIO | H112: ENCARGADO DE HACIENDA PUBLICA | I112: 15 | J112: TARJETA | L112: 0 | M112: 0 | N112: =8355/15 -> 557 | O112: =TRUNC(N112*I112,2) -> 8355 | P112: =TRUNC(N112*I112*0.04,2) -> 334.2 | Q112: =TRUNC(N112*0.07*I112,2) -> 584.85 | R112: =L112 -> 0 | S112: =TRUNC(Q112+P112+(IF(R112>519,519,R112))+IF(K112=0,0,K112*N112),2) -> 919.05 | T112: =TRUNC((IF(K112=0,I112*N112,(I112-K112)*N112))+(IF(R112<519,0,R112-519)),2)+M112 -> 8355 | U112: =S112+T112 -> 9274.05 | X112: 0 | Y112: =IF(N112>0.01,(T112-VLOOKUP(T112,quincenal,1))*VLOOKUP(T112,quincenal,3)+VLOOKUP(T112,quincenal,2)-VLOOKUP(T112,subquincenal,2),0) -> 1237.438824 | Z112: =TRUNC(IF(Y112>0.01,Y112,0),2) -> 1237.43 | AA112: =TRUNC(IF(Y112<0.01,-Y112,0),2) -> 0 | AB112: =U112-W112-X112-Z112+AA112 -> 8036.62 | AC112: =#REF! ->  | AE112: 63
D113: PEREZ JAIME ARTURO | E113: PEJA600718 | F113: PEXJ600718HJCRXM09 | G113: 2009-01-05 | H113: AUXILIAR CONTABLE | I113: 15 | J113: TARJETA | L113: 0 | M113: 0 | N113: =5198/15 -> 346.5333333 | O113: =TRUNC(N113*I113,2) -> 5198 | P113: =TRUNC(N113*I113*0.04,2) -> 207.92 | Q113: =TRUNC(N113*0.07*I113,2) -> 363.86 | R113: =L113 -> 0 | S113: =TRUNC(Q113+P113+(IF(R113>519,519,R113))+IF(K113=0,0,K113*N113),2) -> 571.78 | T113: =TRUNC((IF(K113=0,I113*N113,(I113-K113)*N113))+(IF(R113<519,0,R113-519)),2)+M113 -> 5198 | U113: =S113+T113 -> 5769.78 | X113: 0 | Y113: =IF(N113>0.01,(T113-VLOOKUP(T113,quincenal,1))*VLOOKUP(T113,quincenal,3)+VLOOKUP(T113,quincenal,2)-VLOOKUP(T113,subquincenal,2),0) -> 563.103624 | Z113: =TRUNC(IF(Y113>0.01,Y113,0),2) -> 563.1 | AA113: =TRUNC(IF(Y113<0.01,-Y113,0),2) -> 0 | AB113: =U113-W113-X113-Z113+AA113 -> 5206.68 | AE113: 64
D114: VALENZUELA PARRA PERLA PATRICIA | H114: SECRETARIA | I114: 15 | J114: TARJETA | L114: 0 | M114: 0 | N114: 147.369 | O114: =TRUNC(N114*I114,2) -> 2210.53 | P114: =TRUNC(N114*I114*0.04,2) -> 88.42 | Q114: =TRUNC(N114*0.07*I114,2) -> 154.73 | R114: =L114 -> 0 | S114: =TRUNC(Q114+P114+(IF(R114>519,519,R114))+IF(K114=0,0,K114*N114),2) -> 243.15 | T114: =TRUNC((IF(K114=0,I114*N114,(I114-K114)*N114))+(IF(R114<519,0,R114-519)),2)+M114 -> 2210.53 | U114: =S114+T114 -> 2453.68 | X114: 0 | Y114: =IF(N114>0.01,(T114-VLOOKUP(T114,quincenal,1))*VLOOKUP(T114,quincenal,3)+VLOOKUP(T114,quincenal,2)-VLOOKUP(T114,subquincenal,2),0) -> -38.327424 | Z114: =TRUNC(IF(Y114>0.01,Y114,0),2) -> 0 | AA114: =TRUNC(IF(Y114<0.01,-Y114,0),2) -> 38.32 | AB114: =U114-W114-X114-Z114+AA114 -> 2492
D115: ARQUIETA GONZALEZ IRENE MAGALI | H115: ENCARGADO DEL DEPTO DE ADQUISICIONES | I115: 15 | J115: TARJETA | L115: 0 | M115: 0 | N115: 217.7938 | O115: =TRUNC(N115*I115,2) -> 3266.9 | P115: =TRUNC(N115*I115*0.04,2) -> 130.67 | Q115: =TRUNC(N115*0.07*I115,2) -> 228.68 | R115: =L115 -> 0 | S115: =TRUNC(Q115+P115+(IF(R115>519,519,R115))+IF(K115=0,0,K115*N115),2) -> 359.35 | T115: =TRUNC((IF(K115=0,I115*N115,(I115-K115)*N115))+(IF(R115<519,0,R115-519)),2)+M115 -> 3266.9 | U115: =S115+T115 -> 3626.25 | X115: 0 | Y115: =IF(N115>0.01,(T115-VLOOKUP(T115,quincenal,1))*VLOOKUP(T115,quincenal,3)+VLOOKUP(T115,quincenal,2)-VLOOKUP(T115,subquincenal,2),0) -> 126.255632 | Z115: =TRUNC(IF(Y115>0.01,Y115,0),2) -> 126.25 | AA115: =TRUNC(IF(Y115<0.01,-Y115,0),2) -> 0 | AB115: =U115-W115-X115-Z115+AA115 -> 3500 | AC115: =#REF! ->  | AE115: 65
D116: GOMEZ ESQUIVEL JULIO ISRAEL | H116: CAPTURISTA EN TESORERIA | I116: 15 | J116: TARJETA | L116: 0 | M116: 0 | N116: 147.9014 | O116: =TRUNC(N116*I116,2) -> 2218.52 | P116: =TRUNC(N116*I116*0.04,2) -> 88.74 | Q116: =TRUNC(N116*0.07*I116,2) -> 155.29 | R116: =L116 -> 0 | S116: =TRUNC(Q116+P116+(IF(R116>519,519,R116))+IF(K116=0,0,K116*N116),2) -> 244.03 | T116: =TRUNC((IF(K116=0,I116*N116,(I116-K116)*N116))+(IF(R116<519,0,R116-519)),2)+M116 -> 2218.52 | U116: =S116+T116 -> 2462.55 | X116: 0 | Y116: =IF(N116>0.01,(T116-VLOOKUP(T116,quincenal,1))*VLOOKUP(T116,quincenal,3)+VLOOKUP(T116,quincenal,2)-VLOOKUP(T116,subquincenal,2),0) -> -37.458112 | Z116: =TRUNC(IF(Y116>0.01,Y116,0),2) -> 0 | AA116: =TRUNC(IF(Y116<0.01,-Y116,0),2) -> 37.45 | AB116: =U116-W116-X116-Z116+AA116 -> 2500 | AE116: 66
D117: MARTINEZ PAREDES ANNA VERONICA | E117: MAPA820618 | F117: MAPA820618MJCRRN00 | G117: 2007-01-31 | H117: AUXILIAR CONTABLE | I117: 15 | J117: TARJETA | L117: 0 | M117: 0 | N117: =4693/15 -> 312.8666667 | O117: =TRUNC(N117*I117,2) -> 4693 | P117: =TRUNC(N117*I117*0.04,2) -> 187.72 | Q117: =TRUNC(N117*0.07*I117,2) -> 328.51 | R117: =L117 -> 0 | S117: =TRUNC(Q117+P117+(IF(R117>519,519,R117))+IF(K117=0,0,K117*N117),2) -> 516.23 | T117: =TRUNC((IF(K117=0,I117*N117,(I117-K117)*N117))+(IF(R117<519,0,R117-519)),2)+M117 -> 4693 | U117: =S117+T117 -> 5209.23 | X117: 0 | Y117: =IF(N117>0.01,(T117-VLOOKUP(T117,quincenal,1))*VLOOKUP(T117,quincenal,3)+VLOOKUP(T117,quincenal,2)-VLOOKUP(T117,subquincenal,2),0) -> 468.491088 | Z117: =TRUNC(IF(Y117>0.01,Y117,0),2) -> 468.49 | AA117: =TRUNC(IF(Y117<0.01,-Y117,0),2) -> 0 | AB117: =U117-W117-X117-Z117+AA117 -> 4740.74 | AC117: =[2]PORTADA!$D$10 -> 1 | AE117: 67
D118: ADMIN ISTRACION DE LA HACIENDA MUNICIPAL | O118: =SUM(O112:O117) -> 25941.95 | P118: =SUM(P112:P117) -> 1037.67 | Q118: 1815.92 | R118: 0 | S118: 2853.59 | T118: 25941.95 | U118: 28795.54 | V118: 0 | W118: 0 | X118: 0 | Y118: 2319.503632 | Z118: 2395.27 | AA118: 75.77 | AB118: 26476.04
D120: DEPARTAMENTO DE INGRESOS
A121: 61 | B121: 11 | C121: 17 | D121: ARIAS RAMOS MARIA DEL SOCORRO | E121: AIRS650514 | F121: AIRS650514MJCRMC06 | H121: CAJERA | I121: 15 | J121: TARJETA | L121: 0 | M121: 0 | N121: =3228/15 -> 215.2 | O121: =TRUNC(N121*I121,2) -> 3228 | P121: =TRUNC(N121*I121*0.04,2) -> 129.12 | Q121: =TRUNC(N121*0.07*I121,2) -> 225.96 | R121: =L121 -> 0 | S121: =TRUNC(Q121+P121+(IF(R121>519,519,R121))+IF(K121=0,0,K121*N121),2) -> 355.08 | T121: =TRUNC((IF(K121=0,I121*N121,(I121-K121)*N121))+(IF(R121<519,0,R121-519)),2)+M121 -> 3228 | U121: =S121+T121 -> 3583.08 | X121: 0 | Y121: =IF(N121>0.01,(T121-VLOOKUP(T121,quincenal,1))*VLOOKUP(T121,quincenal,3)+VLOOKUP(T121,quincenal,2)-VLOOKUP(T121,subquincenal,2),0) -> 122.023312 | Z121: =TRUNC(IF(Y121>0.01,Y121,0),2) -> 122.02 | AA121: =TRUNC(IF(Y121<0.01,-Y121,0),2) -> 0 | AB121: =U121-W121-X121-Z121+AA121 -> 3461.06 | AC121: =[2]PORTADA!$D$10 -> 1 | AE121: 68
D122: CABRALES GONZALEZ JOSE MANUEL | E122: CAGM680912 | F122: CAGM680912HJCBNN06 | G122: 2007-01-01 | H122: RECAUDADOR DE PISO | I122: 15 | J122: TARJETA | L122: 0 | M122: 0 | N122: =3016/15 -> 201.0666667 | O122: =TRUNC(N122*I122,2) -> 3016 | P122: =TRUNC(N122*I122*0.04,2) -> 120.64 | Q122: =TRUNC(N122*0.07*I122,2) -> 211.12 | R122: =L122 -> 0 | S122: =TRUNC(Q122+P122+(IF(R122>519,519,R122))+IF(K122=0,0,K122*N122),2) -> 331.76 | T122: =TRUNC((IF(K122=0,I122*N122,(I122-K122)*N122))+(IF(R122<519,0,R122-519)),2)+M122 -> 3016 | U122: =S122+T122 -> 3347.76 | X122: 0 | Y122: =IF(N122>0.01,(T122-VLOOKUP(T122,quincenal,1))*VLOOKUP(T122,quincenal,3)+VLOOKUP(T122,quincenal,2)-VLOOKUP(T122,subquincenal,2),0) -> 78.707712 | Z122: =TRUNC(IF(Y122>0.01,Y122,0),2) -> 78.7 | AA122: =TRUNC(IF(Y122<0.01,-Y122,0),2) -> 0 | AB122: =U122-W122-X122-Z122+AA122 -> 3269.06 | AC122: =[2]PORTADA!$D$10 -> 1 | AE122: 69
A123: LAURO | D123: BERNAL RUIZ LAURO | H123: NOTIFICADOR | I123: 15 | N123: 203.128 | O123: =TRUNC(N123*I123,2) -> 3046.92 | P123: =TRUNC(N123*I123*0.04,2) -> 121.87 | Q123: =TRUNC(N123*0.07*I123,2) -> 213.28 | R123: =L123 -> 0 | S123: =TRUNC(Q123+P123+(IF(R123>519,519,R123))+IF(K123=0,0,K123*N123),2) -> 335.15 | T123: =TRUNC((IF(K123=0,I123*N123,(I123-K123)*N123))+(IF(R123<519,0,R123-519)),2)+M123 -> 3046.92 | U123: =S123+T123 -> 3382.07 | X123: 0 | Y123: =IF(N123>0.01,(T123-VLOOKUP(T123,quincenal,1))*VLOOKUP(T123,quincenal,3)+VLOOKUP(T123,quincenal,2)-VLOOKUP(T123,subquincenal,2),0) -> 82.071808 | Z123: =TRUNC(IF(Y123>0.01,Y123,0),2) -> 82.07 | AA123: =TRUNC(IF(Y123<0.01,-Y123,0),2) -> 0 | AB123: =U123-W123-X123-Z123+AA123 -> 3300 | AE123: 70
D124: GODOY TAMAYO JULIAN | H124: NOTIFICADOR | I124: 15 | J124: TARJETA | L124: 0 | M124: 0 | N124: 133.0974 | O124: =TRUNC(N124*I124,2) -> 1996.46 | P124: =TRUNC(N124*I124*0.04,2) -> 79.85 | Q124: =TRUNC(N124*0.07*I124,2) -> 139.75 | R124: =L124 -> 0 | S124: =TRUNC(Q124+P124+(IF(R124>519,519,R124))+IF(K124=0,0,K124*N124),2) -> 219.6 | T124: =TRUNC((IF(K124=0,I124*N124,(I124-K124)*N124))+(IF(R124<519,0,R124-519)),2)+M124 -> 1996.46 | U124: =S124+T124 -> 2216.06 | X124: 0 | Y124: =IF(N124>0.01,(T124-VLOOKUP(T124,quincenal,1))*VLOOKUP(T124,quincenal,3)+VLOOKUP(T124,quincenal,2)-VLOOKUP(T124,subquincenal,2),0) -> -71.9444 | Z124: =TRUNC(IF(Y124>0.01,Y124,0),2) -> 0 | AA124: =TRUNC(IF(Y124<0.01,-Y124,0),2) -> 71.94 | AB124: =U124-W124-X124-Z124+AA124 -> 2288
D125: GONZALEZ ARQUIETA CESAR ARMANDO | E125: MAGG | H125: INSPECTOR TESORERIA | I125: 15 | J125: TARJETA | L125: 0 | M125: 0 | N125: 147.9014 | O125: =TRUNC(N125*I125,2) -> 2218.52 | P125: =TRUNC(N125*I125*0.04,2) -> 88.74 | Q125: =TRUNC(N125*0.07*I125,2) -> 155.29 | R125: =L125 -> 0 | S125: =TRUNC(Q125+P125+(IF(R125>519,519,R125))+IF(K125=0,0,K125*N125),2) -> 244.03 | T125: =TRUNC((IF(K125=0,I125*N125,(I125-K125)*N125))+(IF(R125<519,0,R125-519)),2)+M125 -> 2218.52 | U125: =S125+T125 -> 2462.55 | X125: 0 | Y125: =IF(N125>0.01,(T125-VLOOKUP(T125,quincenal,1))*VLOOKUP(T125,quincenal,3)+VLOOKUP(T125,quincenal,2)-VLOOKUP(T125,subquincenal,2),0) -> -37.458112 | Z125: =TRUNC(IF(Y125>0.01,Y125,0),2) -> 0 | AA125: =TRUNC(IF(Y125<0.01,-Y125,0),2) -> 37.45 | AB125: =U125-W125-X125-Z125+AA125 -> 2500 | AE125: 71
D126: DEPARTAMENTO DE INGRESOS | O126: =SUM(O121:O125) -> 13505.9 | P126: =SUM(P121:P125) -> 540.22 | Q126: 945.4 | R126: 0 | S126: 1485.62 | T126: 13505.9 | U126: 14991.52 | V126: 0 | W126: 0 | X126: 0 | Y126: 173.40032 | Z126: 282.79 | AA126: 109.39 | AB126: 14818.12
D128: DEPARTAMENTO DE EGRESOS
A129: 63 | B129: 3 | C129: 7 | E129: LEGJ | H129: COORDINADOR DE EGRESOS | I129: 0 | J129: TARJETA | L129: 0 | M129: 0 | N129: =5198/15 -> 346.5333333 | O129: =TRUNC(N129*I129,2) -> 0 | P129: =TRUNC(N129*I129*0.04,2) -> 0 | Q129: =TRUNC(N129*0.07*I129,2) -> 0 | R129: =L129 -> 0 | S129: =TRUNC(Q129+P129+(IF(R129>519,519,R129))+IF(K129=0,0,K129*N129),2) -> 0 | T129: =TRUNC((IF(K129=0,I129*N129,(I129-K129)*N129))+(IF(R129<519,0,R129-519)),2)+M129 -> 0 | U129: =S129+T129 -> 0 | X129: 0 | Y129: =IF(N129>0.01,(T129-VLOOKUP(T129,quincenal,1))*VLOOKUP(T129,quincenal,3)+VLOOKUP(T129,quincenal,2)-VLOOKUP(T129,subquincenal,2),0) ->  | AB129: =U129-W129-X129-Z129+AA129 -> 0 | AC129: =#REF! ->  | AE129: 72
D130: DEPARTAMENTO DE EGRESOS | O130: =SUM(O129) -> 0 | P130: 0 | Q130: 0 | R130: 0 | S130: 0 | T130: 0 | U130: 0 | V130: 0 | W130: 0 | X130: 0 | Z130: 0 | AA130: 0 | AB130: 0
D132: DEPARTAMENTO DE INFORMATICA
A133: 64 | B133: 3 | C133: 12 | D133: ILLAN ARIAS CESAR | E133: DIME | H133: DIRECTOR DE IDE NFORMATICA Y SISTEMAS | I133: 15 | J133: TARJETA | L133: 0 | M133: 0 | N133: 260.287 | O133: =TRUNC(N133*I133,2) -> 3904.3 | P133: =TRUNC(N133*I133*0.04,2) -> 156.17 | Q133: =TRUNC(N133*0.07*I133,2) -> 273.3 | R133: =L133 -> 0 | S133: =TRUNC(Q133+P133+(IF(R133>519,519,R133))+IF(K133=0,0,K133*N133),2) -> 429.47 | T133: =TRUNC((IF(K133=0,I133*N133,(I133-K133)*N133))+(IF(R133<519,0,R133-519)),2)+M133 -> 3904.3 | U133: =S133+T133 -> 4333.77 | X133: 0 | Y133: =IF(N133>0.01,(T133-VLOOKUP(T133,quincenal,1))*VLOOKUP(T133,quincenal,3)+VLOOKUP(T133,quincenal,2)-VLOOKUP(T133,subquincenal,2),0) -> 333.7764 | Z133: =TRUNC(IF(Y133>0.01,Y133,0),2) -> 333.77 | AA133: =TRUNC(IF(Y133<0.01,-Y133,0),2) -> 0 | AB133: =U133-W133-X133-Z133+AA133 -> 4000 | AC133: =#REF! ->  | AE133: 73
D134: BERNAL ESTRADA EDGAR FERNANDO | H134: AUXILIAR DEL DEPARTAMENTO DE NFORMATICA | I134: 15 | J134: TARJETA | L134: 0 | M134: 0 | N134: 147.9015 | O134: =TRUNC(N134*I134,2) -> 2218.52 | P134: =TRUNC(N134*I134*0.04,2) -> 88.74 | Q134: =TRUNC(N134*0.07*I134,2) -> 155.29 | R134: =L134 -> 0 | S134: =TRUNC(Q134+P134+(IF(R134>519,519,R134))+IF(K134=0,0,K134*N134),2) -> 244.03 | T134: =TRUNC((IF(K134=0,I134*N134,(I134-K134)*N134))+(IF(R134<519,0,R134-519)),2)+M134 -> 2218.52 | U134: =S134+T134 -> 2462.55 | Y134: =IF(N134>0.01,(T134-VLOOKUP(T134,quincenal,1))*VLOOKUP(T134,quincenal,3)+VLOOKUP(T134,quincenal,2)-VLOOKUP(T134,subquincenal,2),0) -> -37.458112 | Z134: =TRUNC(IF(Y134>0.01,Y134,0),2) -> 0 | AA134: =TRUNC(IF(Y134<0.01,-Y134,0),2) -> 37.45 | AB134: =U134-W134-X134-Z134+AA134 -> 2500 | AC134: =#REF! ->  | AE134: 74
D135: DEPARTAMENTO DE COMPUTO E INFORMATICA | O135: =SUM(O133:O134) -> 6122.82 | P135: =SUM(P133:P134) -> 244.91 | Q135: 428.59 | R135: 0 | S135: 673.5 | T135: 6122.82 | U135: 6796.32 | V135: 0 | W135: 0 | X135: 0 | Y135: 296.318288 | Z135: 333.77 | AA135: 37.45 | AB135: 6500
D137: DEPARTAMENTO DE IMPUESTO PREDIAL Y CATASTRO
D138: ROBLES VENEGAS OSCAR HUMBERTO | H138: DIRECTOR | I138: 15 | J138: TARJETA | L138: 0 | M138: 0 | N138: 405.5341 | O138: =TRUNC(N138*I138,2) -> 6083.01 | P138: =TRUNC(N138*I138*0.04,2) -> 243.32 | Q138: =TRUNC(N138*0.07*I138,2) -> 425.81 | R138: =L138 -> 0 | S138: =TRUNC(Q138+P138+(IF(R138>519,519,R138))+IF(K138=0,0,K138*N138),2) -> 669.13 | T138: =TRUNC((IF(K138=0,I138*N138,(I138-K138)*N138))+(IF(R138<519,0,R138-519)),2)+M138 -> 6083.01 | U138: =S138+T138 -> 6752.14 | X138: 0 | Y138: =IF(N138>0.01,(T138-VLOOKUP(T138,quincenal,1))*VLOOKUP(T138,quincenal,3)+VLOOKUP(T138,quincenal,2)-VLOOKUP(T138,subquincenal,2),0) -> 752.14176 | Z138: =TRUNC(IF(Y138>0.01,Y138,0),2) -> 752.14 | AA138: =TRUNC(IF(Y138<0.01,-Y138,0),2) -> 0 | AB138: =U138-W138-X138-Z138+AA138 -> 6000 | AE138: 75
A139: 66 | B139: 3 | C139: 13 | D139: CASTELLANOS LOPEZ FRANCISCO JAVIER | E139: CAPB801105 | F139: CAPB801105MJCMRR06 | G139: 2007-01-01 | H139: SUB-DIRECTOR DE CATASTRO | I139: 15 | J139: TARJETA | L139: 0 | M139: 0 | N139: 274.0419 | O139: =TRUNC(N139*I139,2) -> 4110.62 | P139: =TRUNC(N139*I139*0.04,2) -> 164.42 | Q139: =TRUNC(N139*0.07*I139,2) -> 287.74 | R139: =L139 -> 0 | S139: =TRUNC(Q139+P139+(IF(R139>519,519,R139))+IF(K139=0,0,K139*N139),2) -> 452.16 | T139: =TRUNC((IF(K139=0,I139*N139,(I139-K139)*N139))+(IF(R139<519,0,R139-519)),2)+M139 -> 4110.62 | U139: =S139+T139 -> 4562.78 | X139: 0 | Y139: =IF(N139>0.01,(T139-VLOOKUP(T139,quincenal,1))*VLOOKUP(T139,quincenal,3)+VLOOKUP(T139,quincenal,2)-VLOOKUP(T139,subquincenal,2),0) -> 366.7876 | Z139: =TRUNC(IF(Y139>0.01,Y139,0),2) -> 366.78 | AA139: =TRUNC(IF(Y139<0.01,-Y139,0),2) -> 0 | AB139: =U139-W139-X139-Z139+AA139 -> 4196 | AC139: =#REF! ->  | AE139: 76
A140: 63 | B140: 3 | C140: 13 | E140: GOME840310 | F140: GOME840310MJCNRR06 | G140: 2009-01-01 | H140: SECRETARIA | I140: 0 | J140: TARJETA | L140: 0 | M140: 0 | N140: 170.38 | O140: 0 | P140: 0 | Q140: 0 | R140: 0 | S140: 0 | T140: 0 | U140: 0 | W140: 0 | X140: 0 | AB140: 0 | AC140: =#REF! -> 
A141: 67 | D141: GARCIA LOPEZ MARIA ESMERALDA | E141: HEBC | H141: SECRETARIA EN CATASTRO | I141: 15 | J141: TARJETA | L141: 0 | M141: 0 | N141: 147.369 | O141: 2210.53 | P141: 88.42 | Q141: 154.73 | R141: 0 | S141: 243.15 | T141: 2210.53 | U141: 2453.68 | Y141: =IF(N141>0.01,(T141-VLOOKUP(T141,quincenal,1))*VLOOKUP(T141,quincenal,3)+VLOOKUP(T141,quincenal,2)-VLOOKUP(T141,subquincenal,2),0) -> -38.327424 | Z141: =TRUNC(IF(Y141>0.01,Y141,0),2) -> 0 | AA141: =TRUNC(IF(Y141<0.01,-Y141,0),2) -> 38.32 | AB141: 2492 | AE141: 77
D142: ORTEGA CRUZ ERIKA NARSEDALIA | H142: SECRETARIA EN CATASTRO | I142: 15 | J142: TARJETA | L142: 0 | M142: 0 | N142: 147.369 | O142: =TRUNC(N142*I142,2) -> 2210.53 | P142: =TRUNC(N142*I142*0.04,2) -> 88.42 | Q142: =TRUNC(N142*0.07*I142,2) -> 154.73 | R142: =L142 -> 0 | S142: =TRUNC(Q142+P142+(IF(R142>519,519,R142))+IF(K142=0,0,K142*N142),2) -> 243.15 | T142: =TRUNC((IF(K142=0,I142*N142,(I142-K142)*N142))+(IF(R142<519,0,R142-519)),2)+M142 -> 2210.53 | U142: =S142+T142 -> 2453.68 | X142: 0 | Y142: =IF(N142>0.01,(T142-VLOOKUP(T142,quincenal,1))*VLOOKUP(T142,quincenal,3)+VLOOKUP(T142,quincenal,2)-VLOOKUP(T142,subquincenal,2),0) -> -38.327424 | Z142: =TRUNC(IF(Y142>0.01,Y142,0),2) -> 0 | AA142: =TRUNC(IF(Y142<0.01,-Y142,0),2) -> 38.32 | AB142: =U142-W142-X142-Z142+AA142 -> 2492 | AE142: 78
D143: DEPARTAMENTO DE IMPUESTO PREDIAL Y CATASTRO | O143: =SUM(O138:O142) -> 14614.69 | P143: 584.58 | Q143: 1023.01 | R143: 0 | S143: 1607.59 | T143: 14614.69 | U143: 16222.28 | V143: 0 | W143: 0 | X143: 0 | Y143: 1042.274512 | Z143: 1118.92 | AA143: 76.64 | AB143: 15180
D145: ADMINISTRACION DE LOS SERVICIOS PUBLICOS MUNICIPALES
A146: 69 | D146: MARISCAL MORALES JESUS RICARDO | E146: HEAM740507 | F146: HEAM740507HJCRGN04 | G146: 2008-05-01 | H146: DIRECTOR DE SERVICIOS ´PÚBLICOS MUNICIPALES | I146: 15 | J146: TARJETA | L146: 0 | M146: 0 | N146: 491.062 | O146: =TRUNC(N146*I146,2) -> 7365.93 | P146: =TRUNC(N146*I146*0.04,2) -> 294.63 | Q146: =TRUNC(N146*0.07*I146,2) -> 515.61 | R146: =L146 -> 0 | S146: =TRUNC(Q146+P146+(IF(R146>519,519,R146))+IF(K146=0,0,K146*N146),2) -> 810.24 | T146: =TRUNC((IF(K146=0,I146*N146,(I146-K146)*N146))+(IF(R146<519,0,R146-519)),2)+M146 -> 7365.93 | U146: =S146+T146 -> 8176.17 | X146: 0 | Y146: =IF(N146>0.01,(T146-VLOOKUP(T146,quincenal,1))*VLOOKUP(T146,quincenal,3)+VLOOKUP(T146,quincenal,2)-VLOOKUP(T146,subquincenal,2),0) -> 1026.173472 | Z146: =TRUNC(IF(Y146>0.01,Y146,0),2) -> 1026.17 | AA146: =TRUNC(IF(Y146<0.01,-Y146,0),2) -> 0 | AB146: =U146-W146-X146-Z146+AA146 -> 7150 | AC146: =#REF! ->  | AE146: 79
A147: 70 | D147: CERVANTES VELAZCO ISAIAS | E147: IAOR | H147: ENCARGADO DE MANTENIMIENTO A VEHICULOS | I147: 15 | J147: TARJETA | L147: 0 | M147: 0 | N147: 295.625 | O147: =TRUNC(N147*I147,2) -> 4434.37 | P147: =TRUNC(N147*I147*0.04,2) -> 177.37 | Q147: =TRUNC(N147*0.07*I147,2) -> 310.4 | R147: =L147 -> 0 | S147: =TRUNC(Q147+P147+(IF(R147>519,519,R147))+IF(K147=0,0,K147*N147),2) -> 487.77 | T147: =TRUNC((IF(K147=0,I147*N147,(I147-K147)*N147))+(IF(R147<519,0,R147-519)),2)+M147 -> 4434.37 | U147: =S147+T147 -> 4922.14 | X147: 0 | Y147: =IF(N147>0.01,(T147-VLOOKUP(T147,quincenal,1))*VLOOKUP(T147,quincenal,3)+VLOOKUP(T147,quincenal,2)-VLOOKUP(T147,subquincenal,2),0) -> 422.144592 | Z147: =TRUNC(IF(Y147>0.01,Y147,0),2) -> 422.14 | AA147: =TRUNC(IF(Y147<0.01,-Y147,0),2) -> 0 | AB147: =U147-W147-X147-Z147+AA147 -> 4500 | AE147: 80
D148: HERNANDEZ AGUIRRE JOSE MANUEL | H148: OPERADOR DE MAQUINARIA | I148: 15 | N148: 228.53 | O148: =TRUNC(N148*I148,2) -> 3427.95 | P148: =TRUNC(N148*I148*0.04,2) -> 137.11 | Q148: =TRUNC(N148*0.07*I148,2) -> 239.95 | R148: =L148 -> 0 | S148: =TRUNC(Q148+P148+(IF(R148>519,519,R148))+IF(K148=0,0,K148*N148),2) -> 377.06 | T148: =TRUNC((IF(K148=0,I148*N148,(I148-K148)*N148))+(IF(R148<519,0,R148-519)),2)+M148 -> 3427.95 | U148: =S148+T148 -> 3805.01 | X148: 0 | Y148: =IF(N148>0.01,(T148-VLOOKUP(T148,quincenal,1))*VLOOKUP(T148,quincenal,3)+VLOOKUP(T148,quincenal,2)-VLOOKUP(T148,subquincenal,2),0) -> 143.777872 | Z148: =TRUNC(IF(Y148>0.01,Y148,0),2) -> 143.77 | AA148: =TRUNC(IF(Y148<0.01,-Y148,0),2) -> 0 | AB148: =U148-W148-X148-Z148+AA148 -> 3661.24 | AE148: 81
A149: 80 | D149: JUAREZ FLORES HUGO | H149: CHOFER | I149: 15 | J149: TARJETA | L149: 0 | M149: 0 | N149: 183.152 | O149: =TRUNC(N149*I149,2) -> 2747.28 | P149: =TRUNC(N149*I149*0.04,2) -> 109.89 | Q149: =TRUNC(N149*0.07*I149,2) -> 192.3 | R149: =L149 -> 0 | S149: =TRUNC(Q149+P149+(IF(R149>519,519,R149))+IF(K149=0,0,K149*N149),2) -> 302.19 | T149: =TRUNC((IF(K149=0,I149*N149,(I149-K149)*N149))+(IF(R149<519,0,R149-519)),2)+M149 -> 2747.28 | U149: =S149+T149 -> 3049.47 | X149: 0 | Y149: =IF(N149>0.01,(T149-VLOOKUP(T149,quincenal,1))*VLOOKUP(T149,quincenal,3)+VLOOKUP(T149,quincenal,2)-VLOOKUP(T149,subquincenal,2),0) -> 49.470976 | Z149: =TRUNC(IF(Y149>0.01,Y149,0),2) -> 49.47 | AA149: =TRUNC(IF(Y149<0.01,-Y149,0),2) -> 0 | AB149: =U149-W149-X149-Z149+AA149 -> 3000 | AE149: 82
D150: GARCIA MARTINEZ FRANCISCO RIGOBERTO | H150: AUX ILIAR DE LIMPIEZA PLAZA DE TOROS | I150: 15 | J150: TARJETA | N150: 147.9015 | O150: 2218.52 | P150: 88.74 | Q150: 155.29 | R150: 0 | S150: 244.03 | T150: 2218.52 | U150: 2462.55 | X150: 0 | Y150: -37.458112 | Z150: =TRUNC(IF(Y150>0.01,Y150,0),2) -> 0 | AA150: =TRUNC(IF(Y150<0.01,-Y150,0),2) -> 37.45 | AB150: 2500 | AE150: 84
D151: DOMINGUEZ HECTOR FREDDI | E151: BECR460228 | F151: BECR460207HJCRHS07 | G151: 2004-01-01 | H151: CHOFER | I151: 15 | J151: TARJETA | L151: 0 | M151: 0 | N151: 217.7938 | O151: 3266.9 | P151: 130.67 | Q151: 228.68 | R151: 0 | S151: 359.35 | T151: 3266.9 | U151: 3626.25 | X151: 0 | Y151: 126.255632 | Z151: =TRUNC(IF(Y151>0.01,Y151,0),2) -> 126.25 | AA151: =TRUNC(IF(Y151<0.01,-Y151,0),2) -> 0 | AB151: 3500 | AE151: 85
D152: DELGADO PACHECO RICARDO | H152: AYUDANTE | I152: 15 | J152: TARJETA | L152: 0 | M152: 0 | N152: 183.152 | O152: 2747.28 | P152: 109.89 | Q152: 192.3 | R152: 0 | S152: 302.19 | T152: 2747.28 | U152: 3049.47 | X152: 0 | Y152: 49.470976 | Z152: =TRUNC(IF(Y152>0.01,Y152,0),2) -> 49.47 | AA152: =TRUNC(IF(Y152<0.01,-Y152,0),2) -> 0 | AB152: 3000 | AE152: 86
D153: JUAREZ JIMENEZ ALFREDO | E153: BECR460228 | F153: BECR460207HJCRHS07 | G153: 2004-01-01 | H153: CHOFER | I153: 15 | J153: TARJETA | L153: 0 | M153: 0 | N153: 147.9015 | O153: 2218.52 | P153: 88.74 | Q153: 155.29 | R153: 0 | S153: 244.03 | T153: 2218.52 | U153: 2462.55 | Y153: -37.458112 | Z153: =TRUNC(IF(Y153>0.01,Y153,0),2) -> 0 | AA153: =TRUNC(IF(Y153<0.01,-Y153,0),2) -> 37.45 | AB153: 2500 | AE153: 87
D154: MOJARRO BERUMEN ENRIQUE | H154: EMPEDRADOR | I154: 15 | J154: TARJETA | L154: 0 | M154: 0 | N154: =2866/15 -> 191.0666667 | O154: =TRUNC(N154*I154,2) -> 2866 | P154: =TRUNC(N154*I154*0.04,2) -> 114.64 | Q154: =TRUNC(N154*0.07*I154,2) -> 200.62 | R154: =L154 -> 0 | S154: =TRUNC(Q154+P154+(IF(R154>519,519,R154))+IF(K154=0,0,K154*N154),2) -> 315.26 | T154: =TRUNC((IF(K154=0,I154*N154,(I154-K154)*N154))+(IF(R154<519,0,R154-519)),2)+M154 -> 2866 | U154: =S154+T154 -> 3181.26 | Y154: =IF(N154>0.01,(T154-VLOOKUP(T154,quincenal,1))*VLOOKUP(T154,quincenal,3)+VLOOKUP(T154,quincenal,2)-VLOOKUP(T154,subquincenal,2),0) -> 62.387712 | Z154: =TRUNC(IF(Y154>0.01,Y154,0),2) -> 62.38 | AA154: =TRUNC(IF(Y154<0.01,-Y154,0),2) -> 0 | AB154: =U154-W154-X154-Z154+AA154 -> 3118.88 | AE154: 88
D155: FERREL ALCANTAR EDMUNDO | H155: EMPEDRADOR | I155: 15 | J155: TARJETA | L155: 0 | M155: 0 | N155: =2866/15 -> 191.0666667 | O155: 2866 | P155: 114.64 | Q155: 200.62 | R155: 0 | S155: 315.26 | T155: 2866 | U155: 3181.26 | Y155: 62.387712 | Z155: 62.38 | AA155: 0 | AB155: 3118.88 | AE155: 89
D156: NAVARRO GUTIERREZ MOISES EDMUNDO | H156: AYUDANTE | I156: 15 | J156: TARJETA | L156: 0 | M156: 0 | N156: =2222/15 -> 148.1333333 | O156: 2222 | P156: 88.88 | Q156: 155.54 | R156: 0 | S156: 244.42 | T156: 2222 | U156: 2466.42 | Y156: =IF(N156>0.01,(T156-VLOOKUP(T156,quincenal,1))*VLOOKUP(T156,quincenal,3)+VLOOKUP(T156,quincenal,2)-VLOOKUP(T156,subquincenal,2),0) -> -37.079488 | Z156: 0 | AA156: 37.07 | AB156: 2503.49 | AE156: 90
D157: GALLEGOS RIVAS ADRIAN | H157: AYUDANTE | I157: 15 | J157: TARJETA | L157: 0 | M157: 0 | N157: =2222/15 -> 148.1333333 | O157: 2222 | P157: 88.88 | Q157: 155.54 | R157: 0 | S157: 244.42 | T157: 2222 | U157: 2466.42 | Y157: -37.079488 | Z157: 0 | AA157: 37.07 | AB157: 2503.49 | AE157: 91
D158: RAMIREZ GARCIA J. JESUS | H158: AYUDANTE | I158: 15 | J158: TARJETA | L158: 0 | M158: 0 | N158: =2222/15 -> 148.1333333 | O158: 2222 | P158: 88.88 | Q158: 155.54 | R158: 0 | S158: 244.42 | T158: 2222 | U158: 2466.42 | Y158: -37.079488 | Z158: 0 | AA158: 37.07 | AB158: 2503.49 | AE158: 92
D159: ORENDAIN BERNAL ROBERTO | H159: AYUDANTE | I159: 15 | J159: TARJETA | L159: 0 | M159: 0 | N159: =2222/15 -> 148.1333333 | O159: 2222 | P159: 88.88 | Q159: 155.54 | R159: 0 | S159: 244.42 | T159: 2222 | U159: 2466.42 | Y159: -37.079488 | Z159: 0 | AA159: 37.07 | AB159: 2503.49 | AE159: 93
D160: ACEVEDO OCHOA J. GUADALUPE | H160: ALMACENISTA | I160: 15 | J160: TARJETA | L160: 0 | M160: 0 | N160: 183.152 | O160: =TRUNC(N160*I160,2) -> 2747.28 | P160: =TRUNC(N160*I160*0.04,2) -> 109.89 | Q160: =TRUNC(N160*0.07*I160,2) -> 192.3 | R160: =L160 -> 0 | S160: =TRUNC(Q160+P160+(IF(R160>519,519,R160))+IF(K160=0,0,K160*N160),2) -> 302.19 | T160: =TRUNC((IF(K160=0,I160*N160,(I160-K160)*N160))+(IF(R160<519,0,R160-519)),2)+M160 -> 2747.28 | U160: =S160+T160 -> 3049.47 | X160: 0 | Y160: =IF(N160>0.01,(T160-VLOOKUP(T160,quincenal,1))*VLOOKUP(T160,quincenal,3)+VLOOKUP(T160,quincenal,2)-VLOOKUP(T160,subquincenal,2),0) -> 49.470976 | Z160: =TRUNC(IF(Y160>0.01,Y160,0),2) -> 49.47 | AA160: =TRUNC(IF(Y160<0.01,-Y160,0),2) -> 0 | AB160: =U160-W160-X160-Z160+AA160 -> 3000 | AE160: 94
D161: GONZALEZ AZPEITIA ALVARO | H161: AYUDANTE | I161: 15 | J161: TARJETA | L161: 0 | M161: 0 | N161: =1989/15 -> 132.6 | O161: =TRUNC(N161*I161,2) -> 1989 | P161: =TRUNC(N161*I161*0.04,2) -> 79.56 | Q161: =TRUNC(N161*0.07*I161,2) -> 139.23 | R161: =L161 -> 0 | S161: =TRUNC(Q161+P161+(IF(R161>519,519,R161))+IF(K161=0,0,K161*N161),2) -> 218.79 | T161: =TRUNC((IF(K161=0,I161*N161,(I161-K161)*N161))+(IF(R161<519,0,R161-519)),2)+M161 -> 1989 | U161: =S161+T161 -> 2207.79 | Y161: =IF(N161>0.01,(T161-VLOOKUP(T161,quincenal,1))*VLOOKUP(T161,quincenal,3)+VLOOKUP(T161,quincenal,2)-VLOOKUP(T161,subquincenal,2),0) -> -72.42184 | Z161: =TRUNC(IF(Y161>0.01,Y161,0),2) -> 0 | AA161: =TRUNC(IF(Y161<0.01,-Y161,0),2) -> 72.42 | AB161: =U161-W161-X161-Z161+AA161 -> 2280.21 | AE161: 95
D162: ARQUIETA VADILLO ARTURO | E162: AUVA551030FJ0 | F162: AUVA551030HJCRDR15 | H162: PINTOR GENERAL | I162: 15 | J162: SOBRE | L162: 0 | M162: 0 | N162: =4527/15 -> 301.8 | O162: 4527 | P162: 181.08 | Q162: 316.89 | R162: =L162 -> 0 | S162: 497.97 | T162: 4527 | U162: =S162+T162 -> 5024.97 | Y162: =IF(N162>0.01,(T162-VLOOKUP(T162,quincenal,1))*VLOOKUP(T162,quincenal,3)+VLOOKUP(T162,quincenal,2)-VLOOKUP(T162,subquincenal,2),0) -> 438.743888 | Z162: =TRUNC(IF(Y162>0.01,Y162,0),2) -> 438.74 | AA162: =TRUNC(IF(Y162<0.01,-Y162,0),2) -> 0 | AB162: =U162-W162-X162-Z162+AA162 -> 4586.23 | AE162: 96
D163: ADMINISTRACION DE LOS SERVICIOS PUBLICOS MUNICIPALES | O163: =SUM(O146:O162) -> 52310.03 | P163: =SUM(P146:P162) -> 2092.37 | Q163: 3661.64 | R163: 0 | S163: 5754.01 | T163: 52310.03 | U163: 58064.04 | V163: 0 | W163: 0 | X163: 0 | Y163: 2134.627792 | Z163: 2430.24 | AA163: 295.6 | AB163: 55929.4
D164: DIRECCION GENERAL DE OBRAS PUBLICAS
A165: 83 | B165: 4 | C165: 1 | D165: DAVALOS SALCEDO MIGUEL CARLOS | H165: DIRECTOR DE OBRAS PÚBLICAS | I165: 15 | J165: TARJETA | L165: 0 | M165: 0 | N165: 479.9059 | O165: =TRUNC(N165*I165,2) -> 7198.58 | P165: =TRUNC(N165*I165*0.04,2) -> 287.94 | Q165: =TRUNC(N165*0.07*I165,2) -> 503.9 | R165: =L165 -> 0 | S165: =TRUNC(Q165+P165+(IF(R165>519,519,R165))+IF(K165=0,0,K165*N165),2) -> 791.84 | T165: =TRUNC((IF(K165=0,I165*N165,(I165-K165)*N165))+(IF(R165<519,0,R165-519)),2)+M165 -> 7198.58 | U165: =S165+T165 -> 7990.42 | X165: 0 | Y165: =IF(N165>0.01,(T165-VLOOKUP(T165,quincenal,1))*VLOOKUP(T165,quincenal,3)+VLOOKUP(T165,quincenal,2)-VLOOKUP(T165,subquincenal,2),0) -> 990.427512 | Z165: =TRUNC(IF(Y165>0.01,Y165,0),2) -> 990.42 | AA165: =TRUNC(IF(Y165<0.01,-Y165,0),2) -> 0 | AB165: =U165-W165-X165-Z165+AA165 -> 7000 | AC165: =#REF! ->  | AE165: 97
D166: GUTIERREZ MARTINEZ JORGE | H166: SUB DIRECTOR DE OBRAS PÚBLICAS | I166: 15 | J166: TARJETA | L166: 0 | M166: 0 | N166: 331.436 | O166: =TRUNC(N166*I166,2) -> 4971.54 | P166: =TRUNC(N166*I166*0.04,2) -> 198.86 | Q166: =TRUNC(N166*0.07*I166,2) -> 348 | R166: =L166 -> 0 | S166: =TRUNC(Q166+P166+(IF(R166>519,519,R166))+IF(K166=0,0,K166*N166),2) -> 546.86 | T166: =TRUNC((IF(K166=0,I166*N166,(I166-K166)*N166))+(IF(R166<519,0,R166-519)),2)+M166 -> 4971.54 | U166: =S166+T166 -> 5518.4 | X166: 0 | Y166: =IF(N166>0.01,(T166-VLOOKUP(T166,quincenal,1))*VLOOKUP(T166,quincenal,3)+VLOOKUP(T166,quincenal,2)-VLOOKUP(T166,subquincenal,2),0) -> 518.405456 | Z166: =TRUNC(IF(Y166>0.01,Y166,0),2) -> 518.4 | AA166: =TRUNC(IF(Y166<0.01,-Y166,0),2) -> 0 | AB166: =U166-W166-X166-Z166+AA166 -> 5000 | AE166: 98
D167: FLORES IÑIGUEZ JUAN RAYMUNDO | E167: FOIJ8508313Z1 | F167: FOIJ850831HJCLXN07 | G167: 2007-01-01 | H167: SUB-DIRECTOR DESARROLLO URBANO | I167: 15 | J167: TARJETA | L167: 0 | M167: 0 | N167: =3741/15 -> 249.4 | O167: 3741 | P167: 149.64 | Q167: 261.87 | R167: 0 | S167: 411.51 | T167: 3741 | U167: 4152.51 | X167: 0 | Y167: =IF(N167>0.01,(T167-VLOOKUP(T167,quincenal,1))*VLOOKUP(T167,quincenal,3)+VLOOKUP(T167,quincenal,2)-VLOOKUP(T167,subquincenal,2),0) -> 307.6484 | Z167: 307.64 | AA167: 0 | AB167: 3844.87 | AC167: =[2]PORTADA!$D$10 -> 1 | AE167: 99
D168: RENTERIA MENDEZ FRANCISCO | E168: REMF850816I26 | F168: REMF850816HJCNNR00 | G168: 2008-03-05 | H168: AUXILIAR DE DIRECCIÓN | I168: 15 | J168: TARJETA | L168: 0 | M168: 0 | N168: =4385/15 -> 292.3333333 | O168: 4385 | P168: 175.4 | Q168: 306.95 | R168: 0 | S168: 482.35 | T168: 4385 | U168: 4867.35 | X168: 0 | Y168: 413.297488 | Z168: 413.29 | AA168: 0 | AB168: 4454.06 | AC168: =[2]PORTADA!$D$10 -> 1 | AE168: 100
D169: RENTERIA LOPEZ JUAN CARLOS | H169: AUXILIAR DE DESARROLLO URBANO | I169: 15 | N169: =2411.14/15 -> 160.7426667 | O169: =TRUNC(N169*I169,2) -> 2411.14 | P169: =TRUNC(N169*I169*0.04,2) -> 96.44 | Q169: =TRUNC(N169*0.07*I169,2) -> 168.77 | R169: =L169 -> 0 | S169: =TRUNC(Q169+P169+(IF(R169>519,519,R169))+IF(K169=0,0,K169*N169),2) -> 265.21 | T169: =TRUNC((IF(K169=0,I169*N169,(I169-K169)*N169))+(IF(R169<519,0,R169-519)),2)+M169 -> 2411.14 | U169: =S169+T169 -> 2676.35 | X169: 0 | Y169: =IF(N169>0.01,(T169-VLOOKUP(T169,quincenal,1))*VLOOKUP(T169,quincenal,3)+VLOOKUP(T169,quincenal,2)-VLOOKUP(T169,subquincenal,2),0) -> -2.101056 | Z169: =TRUNC(IF(Y169>0.01,Y169,0),2) -> 0 | AA169: =TRUNC(IF(Y169<0.01,-Y169,0),2) -> 2.1 | AB169: =U169-W169-X169-Z169+AA169 -> 2678.45 | AE169: 101
D170: NOLASCO VALLE ARTURO | E170: NOVA | H170: CHOFER | I170: 15 | J170: TARJETA | L170: 0 | M170: 0 | N170: =2866/15 -> 191.0666667 | O170: 2866 | P170: 114.64 | Q170: 200.62 | R170: 0 | S170: 315.26 | T170: 2866 | U170: 3181.26 | W170: 0 | X170: 0 | Y170: =IF(N170>0.01,(T170-VLOOKUP(T170,quincenal,1))*VLOOKUP(T170,quincenal,3)+VLOOKUP(T170,quincenal,2)-VLOOKUP(T170,subquincenal,2),0) -> 62.387712 | Z170: 62.38 | AA170: 0 | AB170: 3118.88 | AC170: =[2]PORTADA!$D$10 -> 1 | AE170: 102
D171: =D164 -> DIRECCION GENERAL DE OBRAS PUBLICAS | O171: =SUM(O165:O170) -> 25573.26 | P171: =SUM(P165:P170) -> 1022.92 | Q171: 1790.11 | R171: 0 | S171: 2813.03 | T171: 25573.26 | U171: 28386.29 | V171: 0 | W171: 0 | X171: 0 | Y171: 2290.065512 | Z171: 2292.13 | AA171: 2.1 | AB171: 26096.26
D173: DEPARTAMENTO DE CEMENTERIOS
D174: ILLAN RUIZ FERNANDO | E174: RIOA520619 | F174: RIOA520619HJCVRD05 | H174: ADMINISTRADOR DE CEMENTERIOS | I174: 15 | J174: TARJETA | L174: 0 | M174: 0 | N174: 217.7938 | O174: =TRUNC(N174*I174,2) -> 3266.9 | P174: =TRUNC(N174*I174*0.04,2) -> 130.67 | Q174: =TRUNC(N174*0.07*I174,2) -> 228.68 | R174: =L174 -> 0 | S174: =TRUNC(Q174+P174+(IF(R174>519,519,R174))+IF(K174=0,0,K174*N174),2) -> 359.35 | T174: =TRUNC((IF(K174=0,I174*N174,(I174-K174)*N174))+(IF(R174<519,0,R174-519)),2)+M174 -> 3266.9 | U174: =S174+T174 -> 3626.25 | X174: 0 | Y174: =IF(N174>0.01,(T174-VLOOKUP(T174,quincenal,1))*VLOOKUP(T174,quincenal,3)+VLOOKUP(T174,quincenal,2)-VLOOKUP(T174,subquincenal,2),0) -> 126.255632 | Z174: =TRUNC(IF(Y174>0.01,Y174,0),2) -> 126.25 | AA174: =TRUNC(IF(Y174<0.01,-Y174,0),2) -> 0 | AB174: =U174-W174-X174-Z174+AA174 -> 3500 | AE174: 103
D175: MURILLO SUAREZ HECTOR | E175: RIOA520619 | F175: RIOA520619HJCVRD05 | H175: AYUDANTE DE CEMENTERIOS | I175: 15 | J175: TARJETA | L175: 0 | M175: 0 | N175: 113.977 | O175: =TRUNC(N175*I175,2) -> 1709.65 | P175: =TRUNC(N175*I175*0.04,2) -> 68.38 | Q175: =TRUNC(N175*0.07*I175,2) -> 119.67 | R175: =L175 -> 0 | S175: =TRUNC(Q175+P175+(IF(R175>519,519,R175))+IF(K175=0,0,K175*N175),2) -> 188.05 | T175: =TRUNC((IF(K175=0,I175*N175,(I175-K175)*N175))+(IF(R175<519,0,R175-519)),2)+M175 -> 1709.65 | U175: =S175+T175 -> 1897.7 | X175: 0 | Y175: =IF(N175>0.01,(T175-VLOOKUP(T175,quincenal,1))*VLOOKUP(T175,quincenal,3)+VLOOKUP(T175,quincenal,2)-VLOOKUP(T175,subquincenal,2),0) -> -102.30024 | Z175: 0 | AA175: =TRUNC(IF(Y175<0.01,-Y175,0),2) -> 102.3 | AB175: =U175-W175-X175-Z175+AA175 -> 2000 | AE175: 104
D176: HERNANDEZ BAILON JUAN ALFREDO | I176: 15 | J176: TARJETA | L176: 0 | M176: 0 | N176: 113.977 | O176: =TRUNC(N176*I176,2) -> 1709.65 | P176: =TRUNC(N176*I176*0.04,2) -> 68.38 | Q176: =TRUNC(N176*0.07*I176,2) -> 119.67 | R176: =L176 -> 0 | S176: =TRUNC(Q176+P176+(IF(R176>519,519,R176))+IF(K176=0,0,K176*N176),2) -> 188.05 | T176: =TRUNC((IF(K176=0,I176*N176,(I176-K176)*N176))+(IF(R176<519,0,R176-519)),2)+M176 -> 1709.65 | U176: =S176+T176 -> 1897.7 | X176: 0 | Y176: =IF(N176>0.01,(T176-VLOOKUP(T176,quincenal,1))*VLOOKUP(T176,quincenal,3)+VLOOKUP(T176,quincenal,2)-VLOOKUP(T176,subquincenal,2),0) -> -102.30024 | Z176: 0 | AA176: =TRUNC(IF(Y176<0.01,-Y176,0),2) -> 102.3 | AB176: =U176-W176-X176-Z176+AA176 -> 2000 | AE176: 105
A177: 91 | B177: 5 | C177: 2 | D177: FAJARDO LOPEZ JORGE ANTONIO | E177: RIOA520619 | F177: RIOA520619HJCVRD05 | H177: ADMINISTRADOR DE CEMENTERIOS | I177: 15 | J177: TARJETA | L177: 0 | M177: 0 | N177: 113.977 | O177: =TRUNC(N177*I177,2) -> 1709.65 | P177: =TRUNC(N177*I177*0.04,2) -> 68.38 | Q177: =TRUNC(N177*0.07*I177,2) -> 119.67 | R177: =L177 -> 0 | S177: =TRUNC(Q177+P177+(IF(R177>519,519,R177))+IF(K177=0,0,K177*N177),2) -> 188.05 | T177: =TRUNC((IF(K177=0,I177*N177,(I177-K177)*N177))+(IF(R177<519,0,R177-519)),2)+M177 -> 1709.65 | U177: =S177+T177 -> 1897.7 | X177: 0 | Y177: =IF(N177>0.01,(T177-VLOOKUP(T177,quincenal,1))*VLOOKUP(T177,quincenal,3)+VLOOKUP(T177,quincenal,2)-VLOOKUP(T177,subquincenal,2),0) -> -102.30024 | Z177: 0 | AA177: =TRUNC(IF(Y177<0.01,-Y177,0),2) -> 102.3 | AB177: =U177-W177-X177-Z177+AA177 -> 2000 | AC177: =#REF! ->  | AE177: 106
D178: DEPARTAMENTO DE CEMENTERIOS | O178: =SUM(O174:O177) -> 8395.85 | P178: 335.81 | Q178: 587.69 | R178: 0 | S178: 923.5 | T178: 8395.85 | U178: 9319.35 | V178: 0 | W178: 0 | X178: 0 | Y178: -180.645088 | Z178: 126.25 | AA178: 306.9 | AB178: 9500
D180: DEPARTAMENTO DE RASTRO
D181: LOPEZ VILLEGAS J. JESUS | E181: LOVJ470602UN7 | F181: LOVJ470602HJCPLS07 | H181: GUARDA RASTRO | I181: 15 | J181: TARJETA | L181: 0 | M181: 0 | N181: =2367/15 -> 157.8 | O181: =TRUNC(N181*I181,2) -> 2367 | P181: =TRUNC(N181*I181*0.04,2) -> 94.68 | Q181: =TRUNC(N181*0.07*I181,2) -> 165.69 | R181: =L181 -> 0 | S181: =TRUNC(Q181+P181+(IF(R181>519,519,R181))+IF(K181=0,0,K181*N181),2) -> 260.37 | T181: =TRUNC((IF(K181=0,I181*N181,(I181-K181)*N181))+(IF(R181<519,0,R181-519)),2)+M181 -> 2367 | U181: =S181+T181 -> 2627.37 | X181: 0 | Y181: =IF(N181>0.01,(T181-VLOOKUP(T181,quincenal,1))*VLOOKUP(T181,quincenal,3)+VLOOKUP(T181,quincenal,2)-VLOOKUP(T181,subquincenal,2),0) -> -6.903488 | Z181: =TRUNC(IF(Y181>0.01,Y181,0),2) -> 0 | AA181: =TRUNC(IF(Y181<0.01,-Y181,0),2) -> 6.9 | AB181: =U181-W181-X181-Z181+AA181 -> 2634.27 | AC181: =[2]PORTADA!$D$10 -> 1 | AE181: 107
D182: FREGOSO BARBOZA CARLOS RAFAEL | E182: PARR | H182: VETERINARIO | I182: 15 | J182: TARJETA | L182: 0 | M182: 0 | N182: =3669/15 -> 244.6 | O182: =TRUNC(N182*I182,2) -> 3669 | P182: =TRUNC(N182*I182*0.04,2) -> 146.76 | Q182: =TRUNC(N182*0.07*I182,2) -> 256.83 | R182: =L182 -> 0 | S182: =TRUNC(Q182+P182+(IF(R182>519,519,R182))+IF(K182=0,0,K182*N182),2) -> 403.59 | T182: =TRUNC((IF(K182=0,I182*N182,(I182-K182)*N182))+(IF(R182<519,0,R182-519)),2)+M182 -> 3669 | U182: =S182+T182 -> 4072.59 | X182: 0 | Y182: =IF(N182>0.01,(T182-VLOOKUP(T182,quincenal,1))*VLOOKUP(T182,quincenal,3)+VLOOKUP(T182,quincenal,2)-VLOOKUP(T182,subquincenal,2),0) -> 296.1284 | Z182: =TRUNC(IF(Y182>0.01,Y182,0),2) -> 296.12 | AA182: =TRUNC(IF(Y182<0.01,-Y182,0),2) -> 0 | AB182: =U182-W182-X182-Z182+AA182 -> 3776.47 | AC182: =[2]PORTADA!$D$10 -> 1 | AE182: 108
D183: MARTINEZ TORRES JUSTINO | E183: MATJ | H183: AUXILIAR DE MENTENIMIENTO | I183: 15 | J183: TARJETA | L183: 0 | M183: 0 | N183: =1591/15 -> 106.0666667 | O183: =TRUNC(N183*I183,2) -> 1591 | P183: =TRUNC(N183*I183*0.04,2) -> 63.64 | Q183: =TRUNC(N183*0.07*I183,2) -> 111.37 | R183: =L183 -> 0 | S183: =TRUNC(Q183+P183+(IF(R183>519,519,R183))+IF(K183=0,0,K183*N183),2) -> 175.01 | T183: =TRUNC((IF(K183=0,I183*N183,(I183-K183)*N183))+(IF(R183<519,0,R183-519)),2)+M183 -> 1591 | U183: =S183+T183 -> 1766.01 | X183: 0 | Y183: =IF(N183>0.01,(T183-VLOOKUP(T183,quincenal,1))*VLOOKUP(T183,quincenal,3)+VLOOKUP(T183,quincenal,2)-VLOOKUP(T183,subquincenal,2),0) -> -109.89384 | Z183: =TRUNC(IF(Y183>0.01,Y183,0),2) -> 0 | AA183: =TRUNC(IF(Y183<0.01,-Y183,0),2) -> 109.89 | AB183: =U183-W183-X183-Z183+AA183 -> 1875.9 | AE183: 109
D184: DEPARTAMENTO DE RASTRO | O184: =SUM(O181:O183) -> 7627 | P184: =SUM(P181:P183) -> 305.08 | Q184: 533.89 | R184: 0 | S184: 838.97 | T184: 7627 | U184: 8465.97 | V184: 0 | W184: 0 | X184: 0 | Y184: 179.331072 | Z184: 296.12 | AA184: 116.79 | AB184: 8286.64 | AC184: 2 | AD184: 0
D186: DEPARTAMENTO DE MERCADOS
D187: GONZALEZ JARA J. REFUGIO JAVIER | E187: GOJR670808 | F187: GOJR670808HJCNRF13 | G187: 2007-03-17 | H187: VELADOR DEPTO DE MERCADOS | I187: 15 | J187: TARJETA | L187: 0 | M187: 0 | N187: =1577/15 -> 105.1333333 | O187: =TRUNC(N187*I187,2) -> 1577 | P187: =TRUNC(N187*I187*0.04,2) -> 63.08 | Q187: =TRUNC(N187*0.07*I187,2) -> 110.39 | R187: =L187 -> 0 | S187: =TRUNC(Q187+P187+(IF(R187>519,519,R187))+IF(K187=0,0,K187*N187),2) -> 173.47 | T187: =TRUNC((IF(K187=0,I187*N187,(I187-K187)*N187))+(IF(R187<519,0,R187-519)),2)+M187 -> 1577 | U187: =S187+T187 -> 1750.47 | X187: 0 | Y187: =IF(N187>0.01,(T187-VLOOKUP(T187,quincenal,1))*VLOOKUP(T187,quincenal,3)+VLOOKUP(T187,quincenal,2)-VLOOKUP(T187,subquincenal,2),0) -> -110.78984 | Z187: =TRUNC(IF(Y187>0.01,Y187,0),2) -> 0 | AA187: =TRUNC(IF(Y187<0.01,-Y187,0),2) -> 110.78 | AB187: =U187-W187-X187-Z187+AA187 -> 1861.25 | AC187: =[2]PORTADA!$D$10 -> 1 | AE187: 110
D188: MARTINEZ GONZALEZ JOSE DE JESUS | E188: MAGJ401015 | F188: MAGJ401015HJCRNC00 | G188: 2004-01-01 | H188: VELADOR DEPTO DE MERCADOS | I188: 15 | J188: TARJETA | L188: 0 | M188: 0 | N188: =1577/15 -> 105.1333333 | O188: =TRUNC(N188*I188,2) -> 1577 | P188: =TRUNC(N188*I188*0.04,2) -> 63.08 | Q188: =TRUNC(N188*0.07*I188,2) -> 110.39 | R188: =L188 -> 0 | S188: =TRUNC(Q188+P188+(IF(R188>519,519,R188))+IF(K188=0,0,K188*N188),2) -> 173.47 | T188: =TRUNC((IF(K188=0,I188*N188,(I188-K188)*N188))+(IF(R188<519,0,R188-519)),2)+M188 -> 1577 | U188: =S188+T188 -> 1750.47 | X188: 0 | Y188: =IF(N188>0.01,(T188-VLOOKUP(T188,quincenal,1))*VLOOKUP(T188,quincenal,3)+VLOOKUP(T188,quincenal,2)-VLOOKUP(T188,subquincenal,2),0) -> -110.78984 | Z188: =TRUNC(IF(Y188>0.01,Y188,0),2) -> 0 | AA188: =TRUNC(IF(Y188<0.01,-Y188,0),2) -> 110.78 | AB188: =U188-W188-X188-Z188+AA188 -> 1861.25 | AC188: =[2]PORTADA!$D$10 -> 1 | AE188: 111
D189: DEPARTAMENTO DE MERCADOS | O189: =SUM(O187:O188) -> 3154 | P189: =SUM(P187:P188) -> 126.16 | Q189: 220.78 | R189: 0 | S189: 346.94 | T189: 3154 | U189: 3500.94 | V189: 0 | W189: 0 | X189: 0 | Y189: -221.57968 | Z189: 0 | AA189: 221.56 | AB189: 3722.5
D191: DEPARTAMENTO DE ASEO PUBLICO
A192: 97 | B192: 5 | C192: 7 | D192: NAVARRO HERNANDEZ SOSTENES | E192: HUAB811011 | F192: HUAB810114HJCRGR01 | G192: 2007-02-01 | H192: SUPERVISOR DE ASEO PUBLICO | I192: 15 | J192: TARJETA | L192: 0 | M192: 0 | N192: 196.469 | O192: =TRUNC(N192*I192,2) -> 2947.03 | P192: =TRUNC(N192*I192*0.04,2) -> 117.88 | Q192: =TRUNC(N192*0.07*I192,2) -> 206.29 | R192: =L192 -> 0 | S192: =TRUNC(Q192+P192+(IF(R192>519,519,R192))+IF(K192=0,0,K192*N192),2) -> 324.17 | T192: =TRUNC((IF(K192=0,I192*N192,(I192-K192)*N192))+(IF(R192<519,0,R192-519)),2)+M192 -> 2947.03 | U192: =S192+T192 -> 3271.2 | X192: 0 | Y192: =IF(N192>0.01,(T192-VLOOKUP(T192,quincenal,1))*VLOOKUP(T192,quincenal,3)+VLOOKUP(T192,quincenal,2)-VLOOKUP(T192,subquincenal,2),0) -> 71.203776 | Z192: =TRUNC(IF(Y192>0.01,Y192,0),2) -> 71.2 | AA192: =TRUNC(IF(Y192<0.01,-Y192,0),2) -> 0 | AB192: =U192-W192-X192-Z192+AA192 -> 3200 | AC192: =#REF! ->  | AE192: 112
D193: HUERTA AGUILA BERNARDINO | E193: HUAB811011 | F193: HUAB810114HJCRGR01 | G193: 2007-02-01 | H193: RECOLECTOR ASEO PUBLICO | I193: 15 | J193: TARJETA | L193: 0 | M193: 0 | N193: =2222/15 -> 148.1333333 | O193: 2222 | P193: 88.88 | Q193: 155.54 | R193: 0 | S193: 244.42 | T193: 2222 | U193: 2466.42 | X193: 0 | Y193: =IF(N193>0.01,(T193-VLOOKUP(T193,quincenal,1))*VLOOKUP(T193,quincenal,3)+VLOOKUP(T193,quincenal,2)-VLOOKUP(T193,subquincenal,2),0) -> -37.079488 | Z193: 0 | AA193: 37.07 | AB193: 2503.49 | AC193: =[2]PORTADA!$D$10 -> 1 | AE193: 113
D194: GRACIA GOMEZ JAVIER | E194: GAGJ731114 | F194: GAGJ731114HJCRMV00 | G194: 2004-01-01 | H194: RECOLECTOR ASEO PUBLICO | I194: 15 | J194: TARJETA | L194: 0 | M194: 0 | N194: =2222/15 -> 148.1333333 | O194: 2222 | P194: 88.88 | Q194: 155.54 | R194: 0 | S194: 244.42 | T194: 2222 | U194: 2466.42 | X194: 0 | Y194: -37.079488 | Z194: 0 | AA194: 37.07 | AB194: 2503.49 | AC194: =[2]PORTADA!$D$10 -> 1 | AE194: 114
D195: FREGOZO ALVARADO ALFONSO | E195: FEAA650918 | F195: FEAA650818HJCRLL05 | G195: 2003-01-01 | H195: RECOLECTOR ASEO PUBLICO | I195: 15 | J195: TARJETA | L195: 0 | M195: 0 | N195: 148.1333333 | O195: 2222 | P195: 88.88 | Q195: 155.54 | R195: 0 | S195: 244.42 | T195: 2222 | U195: 2466.42 | X195: 0 | Y195: -37.079488 | Z195: 0 | AA195: 37.07 | AB195: 2503.49 | AC195: =[2]PORTADA!$D$10 -> 1 | AE195: 115
D196: TELLEZ GOMEZ VICENTE | H196: RECOLECTOR ASEO PUBLICO | I196: 15 | J196: TARJETA | L196: 0 | M196: 0 | N196: 148.1333333 | O196: 2222 | P196: 88.88 | Q196: 155.54 | R196: =L196 -> 0 | S196: 244.42 | T196: 2222 | U196: =S196+T196 -> 2466.42 | W196: 0 | X196: 0 | Y196: =IF(N196>0.01,(T196-VLOOKUP(T196,quincenal,1))*VLOOKUP(T196,quincenal,3)+VLOOKUP(T196,quincenal,2)-VLOOKUP(T196,subquincenal,2),0) -> -37.079488 | Z196: 0 | AA196: =TRUNC(IF(Y196<0.01,-Y196,0),2) -> 37.07 | AB196: =U196-W196-X196-Z196+AA196 -> 2503.49 | AE196: 116
D197: MARTINEZ VEJAR JUAN JOSE | E197: MAVJ710822 | F197: MAVJ710822HJCRJN04 | G197: 2004-01-01 | H197: CHOFER ASEO PUBLICO | I197: 15 | J197: TARJETA | L197: 0 | M197: 0 | N197: =2659/15 -> 177.2666667 | O197: 2659 | P197: 106.36 | Q197: 186.13 | R197: =L197 -> 0 | S197: 292.49 | T197: 2659 | U197: =S197+T197 -> 2951.49 | X197: 0 | Y197: =IF(N197>0.01,(T197-VLOOKUP(T197,quincenal,1))*VLOOKUP(T197,quincenal,3)+VLOOKUP(T197,quincenal,2)-VLOOKUP(T197,subquincenal,2),0) -> 39.866112 | Z197: 39.86 | AA197: =TRUNC(IF(Y197<0.01,-Y197,0),2) -> 0 | AB197: =U197-W197-X197-Z197+AA197 -> 2911.63 | AC197: =[2]PORTADA!$D$10 -> 1 | AE197: 117
D198: HERNANDEZ RICO JUAN JOSE | E198: MATM450918 | F198: MATM451028HJCRRG08 | G198: 2004-01-01 | H198: CHOFER ASEO PUBLICO | I198: 15 | J198: TARJETA | L198: 0 | M198: 0 | N198: =2745/15 -> 183 | O198: 2745 | P198: 109.8 | Q198: 192.15 | R198: 0 | S198: 301.95 | T198: 2745 | U198: 3046.95 | X198: 0 | Y198: 49.222912 | Z198: =TRUNC(IF(Y198>0.01,Y198,0),2) -> 49.22 | AA198: =TRUNC(IF(Y198<0.01,-Y198,0),2) -> 0 | AB198: 2997.73 | AC198: =[2]PORTADA!$D$10 -> 1 | AE198: 118
D199: RICO ARCE VICTOR | E199: BECR460228 | F199: BECR460207HJCRHS07 | G199: 2004-01-01 | H199: CHOFER ASEO PUBLICO | I199: 15 | J199: TARJETA | L199: 0 | M199: 0 | N199: =2745/15 -> 183 | O199: 2745 | P199: 109.8 | Q199: 192.15 | R199: 0 | S199: 301.95 | T199: 2745 | U199: 3046.95 | X199: 0 | Y199: 49.222912 | Z199: =TRUNC(IF(Y199>0.01,Y199,0),2) -> 49.22 | AA199: =TRUNC(IF(Y199<0.01,-Y199,0),2) -> 0 | AB199: 2997.73 | AE199: 119
D200: MENDEZ GARCIA MIGUEL ANGEL | E200: MEGM851109 | F200: MEGM851109HJCNRG03 | G200: 2009-01-16 | H200: AUX. DE LIMPIEZA GRAL. | I200: 15 | J200: TARJETA | L200: 0 | M200: 0 | N200: =2745/15 -> 183 | O200: 2745 | P200: 109.8 | Q200: 192.15 | R200: 0 | S200: 301.95 | T200: 2745 | U200: 3046.95 | X200: 0 | Y200: 49.222912 | Z200: 49.22 | AA200: 0 | AB200: 2997.73 | AC200: =[2]PORTADA!$D$10 -> 1 | AE200: 120
D201: CISNEROS VAZQUEZ RAMIRO | E201: CIVR540430 | F201: CIVR540430HJCSZM04 | G201: 2007-01-01 | H201: RECOLECTOR ASEO PUBLICO | I201: 15 | J201: TARJETA | L201: 0 | M201: 0 | N201: =2222/15 -> 148.1333333 | O201: 2222 | P201: 88.88 | Q201: 155.54 | R201: 0 | S201: 244.42 | T201: 2222 | U201: 2466.42 | X201: 0 | Y201: -37.079488 | Z201: 0 | AA201: 37.07 | AB201: 2503.49 | AC201: =[2]PORTADA!$D$10 -> 1 | AE201: 121
D202: DEPARTAMENTO DE ASEO PUBLICO | O202: =SUM(O192:O201) -> 24951.03 | P202: =SUM(P192:P201) -> 998.04 | Q202: 1746.57 | R202: 0 | S202: 2744.61 | T202: 24951.03 | U202: 27695.64 | V202: 0 | W202: 0 | X202: 0 | Y202: 73.341184 | Z202: 258.72 | AA202: 185.35 | AB202: 27622.27
D204: DEPARTAMENTO DE PARQUES Y JARDINES
A205: 107 | B205: 5 | C205: 8 | D205: NAVARRO HUERTA ISIDRO | E205: HUCR450811 | F205: HUCR450831HJCRRM08 | G205: 2004-01-01 | H205: SUPERVISOR DE PARQUES Y JARDINES | I205: 15 | J205: TARJETA | L205: 0 | M205: 0 | N205: 196.469 | O205: =TRUNC(N205*I205,2) -> 2947.03 | P205: =TRUNC(N205*I205*0.04,2) -> 117.88 | Q205: =TRUNC(N205*0.07*I205,2) -> 206.29 | R205: =L205 -> 0 | S205: =TRUNC(Q205+P205+(IF(R205>519,519,R205))+IF(K205=0,0,K205*N205),2) -> 324.17 | T205: =TRUNC((IF(K205=0,I205*N205,(I205-K205)*N205))+(IF(R205<519,0,R205-519)),2)+M205 -> 2947.03 | U205: =S205+T205 -> 3271.2 | X205: 0 | Y205: =IF(N205>0.01,(T205-VLOOKUP(T205,quincenal,1))*VLOOKUP(T205,quincenal,3)+VLOOKUP(T205,quincenal,2)-VLOOKUP(T205,subquincenal,2),0) -> 71.203776 | Z205: =TRUNC(IF(Y205>0.01,Y205,0),2) -> 71.2 | AA205: =TRUNC(IF(Y205<0.01,-Y205,0),2) -> 0 | AB205: =U205-W205-X205-Z205+AA205 -> 3200 | AC205: =#REF! ->  | AE205: 122
D206: HUERTA CORTES RAMON | E206: HUCR450811 | F206: HUCR450831HJCRRM08 | G206: 2004-01-01 | H206: JARDINERO | I206: 15 | J206: TARJETA | L206: 0 | M206: 0 | N206: =2307/15 -> 153.8 | O206: 2307 | P206: 92.28 | Q206: 161.49 | R206: 0 | S206: 253.77 | T206: 2307 | U206: 2560.77 | X206: 0 | Y206: =IF(N206>0.01,(T206-VLOOKUP(T206,quincenal,1))*VLOOKUP(T206,quincenal,3)+VLOOKUP(T206,quincenal,2)-VLOOKUP(T206,subquincenal,2),0) -> -27.831488 | Z206: 0 | AA206: 27.83 | AB206: 2588.6 | AC206: =[2]PORTADA!$D$10 -> 1 | AE206: 123
D207: SILVA PINTO J ASUNCIÓN | E207: SIPA400815 | F207: SIPA400815HJCLNS02 | G207: 2004-01-01 | H207: JARDINERO | I207: 15 | J207: TARJETA | L207: 0 | M207: 0 | N207: =2222/15 -> 148.1333333 | O207: 2222 | P207: 88.88 | Q207: 155.54 | R207: 0 | S207: 244.42 | T207: 2222 | U207: 2466.42 | X207: 0 | Y207: -37.079488 | Z207: 0 | AA207: 37.07 | AB207: 2503.49 | AC207: =[2]PORTADA!$D$10 -> 1 | AE207: 124
D208: MILLAN GARCIA J. JESUS | H208: JARDINERO | I208: 15 | J208: TARJETA | L208: 0 | M208: 0 | N208: =2222/15 -> 148.1333333 | O208: 2222 | P208: 88.88 | Q208: 155.54 | R208: 0 | S208: 244.42 | T208: 2222 | U208: 2466.42 | X208: 0 | Y208: -37.079488 | Z208: 0 | AA208: 37.07 | AB208: 2503.49 | AE208: 125
D209: MARTINEZ CRUZ JUAN | H209: JARDINERO | I209: 15 | J209: TARJETA | L209: 0 | M209: 0 | N209: 148.1333333 | O209: 2222 | P209: 88.88 | Q209: 155.54 | R209: 0 | S209: 244.42 | T209: 2222 | U209: 2466.42 | W209: 0 | X209: 0 | Y209: -37.079488 | Z209: 0 | AA209: 37.07 | AB209: 2503.49 | AE209: 126
D210: ACOSTA MURILLO JOAQUIN | H210: JARDINERO | I210: 15 | J210: TARJETA | L210: 0 | M210: 0 | N210: 148.1333333 | O210: 2222 | P210: 88.88 | Q210: 155.54 | R210: 0 | S210: 244.42 | T210: 2222 | U210: 2466.42 | X210: 0 | Y210: -37.079488 | Z210: 0 | AA210: 37.07 | AB210: 2503.49 | AE210: 127
D211: REGALADO BAÑUELOS FRANCISCO | E211: REBF441211 | F211: REBF441211HJCGXR05 | G211: 2005-01-01 | H211: BARRENDERO | I211: 15 | J211: TARJETA | L211: 0 | M211: 0 | N211: 148.1333333 | O211: 2222 | P211: 88.88 | Q211: 155.54 | R211: 0 | S211: 244.42 | T211: 2222 | U211: 2466.42 | X211: 0 | Y211: -37.079488 | Z211: =TRUNC(IF(Y211>0.01,Y211,0),2) -> 0 | AA211: 37.07 | AB211: 2503.49 | AC211: =[2]PORTADA!$D$10 -> 1 | AE211: 128
D212: RUIZ MUÑOZ LUIS | E212: RUML530529GL7 | F212: RUML530529HJCZXS03 | G212: 2006-01-01 | H212: VIGILANTE | I212: 15 | J212: TARJETA | L212: 0 | M212: 0 | N212: =2118/15 -> 141.2 | O212: 2118 | P212: 84.72 | Q212: 148.26 | R212: =L212 -> 0 | S212: 232.98 | T212: 2118 | U212: =S212+T212 -> 2350.98 | W212: 0 | X212: 0 | Y212: =IF(N212>0.01,(T212-VLOOKUP(T212,quincenal,1))*VLOOKUP(T212,quincenal,3)+VLOOKUP(T212,quincenal,2)-VLOOKUP(T212,subquincenal,2),0) -> -62.344688 | Z212: =TRUNC(IF(Y212>0.01,Y212,0),2) -> 0 | AA212: =TRUNC(IF(Y212<0.01,-Y212,0),2) -> 62.34 | AB212: =U212-W212-X212-Z212+AA212 -> 2413.32 | AE212: 129
D213: AYALA RODRIGUEZ MIGUEL ANGEL | E213: AARM690504 | F213: AARM690504HJCYDG04 | G213: 2004-01-01 | H213: PODADOR | I213: 15 | J213: TARJETA | L213: 0 | M213: 0 | N213: =2758/15 -> 183.8666667 | O213: 2758 | P213: 110.32 | Q213: 193.06 | R213: 0 | S213: 303.38 | T213: 2758 | U213: 3061.38 | X213: 0 | Y213: 50.637312 | Z213: =TRUNC(IF(Y213>0.01,Y213,0),2) -> 50.63 | AA213: 0 | AB213: 3010.75 | AC213: =[2]PORTADA!$D$10 -> 1 | AE213: 130
D214: VERTEDERO MUNICIPAL | O214: =SUM(O205:O213) -> 21240.03 | P214: =SUM(P205:P213) -> 849.6 | Q214: 1486.8 | R214: 0 | S214: 2336.4 | T214: 21240.03 | U214: 23576.43 | V214: 0 | W214: 0 | X214: 0 | Y214: -153.732528 | Z214: 121.83 | AA214: 275.52 | AB214: 23730.12
D216: DEPARTAMENTO DE ALUMBRADO PUBLICO
D217: RUIZ HERNANDEZ CELESTINO | E217: RUHC540519 | F217: RUHC540519HJCZRL03 | G217: 2004-01-01 | H217: JEFE DE ALUMBRADO PUBLICO | I217: 15 | J217: TARJETA | L217: 0 | M217: 0 | N217: =3428/15 -> 228.5333333 | O217: =TRUNC(N217*I217,2) -> 3428 | P217: =TRUNC(N217*I217*0.04,2) -> 137.12 | Q217: =TRUNC(N217*0.07*I217,2) -> 239.96 | R217: =L217 -> 0 | S217: =TRUNC(Q217+P217+(IF(R217>519,519,R217))+IF(K217=0,0,K217*N217),2) -> 377.08 | T217: =TRUNC((IF(K217=0,I217*N217,(I217-K217)*N217))+(IF(R217<519,0,R217-519)),2)+M217 -> 3428 | U217: =S217+T217 -> 3805.08 | X217: 0 | Y217: =IF(N217>0.01,(T217-VLOOKUP(T217,quincenal,1))*VLOOKUP(T217,quincenal,3)+VLOOKUP(T217,quincenal,2)-VLOOKUP(T217,subquincenal,2),0) -> 143.783312 | Z217: =TRUNC(IF(Y217>0.01,Y217,0),2) -> 143.78 | AA217: =TRUNC(IF(Y217<0.01,-Y217,0),2) -> 0 | AB217: =U217-W217-X217-Z217+AA217 -> 3661.3 | AC217: =[2]PORTADA!$D$10 -> 1 | AE217: 131
D218: LARES RODRIGUEZ JOSE ANGEL | H218: ENCARGADO DE ALUMBRADO PUBLICO | I218: 15 | J218: TARJETA | L218: 0 | M218: 0 | N218: 217.7938 | O218: =TRUNC(N218*I218,2) -> 3266.9 | P218: =TRUNC(N218*I218*0.04,2) -> 130.67 | Q218: =TRUNC(N218*0.07*I218,2) -> 228.68 | R218: =L218 -> 0 | S218: =TRUNC(Q218+P218+(IF(R218>519,519,R218))+IF(K218=0,0,K218*N218),2) -> 359.35 | T218: =TRUNC((IF(K218=0,I218*N218,(I218-K218)*N218))+(IF(R218<519,0,R218-519)),2)+M218 -> 3266.9 | U218: =S218+T218 -> 3626.25 | X218: 0 | Y218: =IF(N218>0.01,(T218-VLOOKUP(T218,quincenal,1))*VLOOKUP(T218,quincenal,3)+VLOOKUP(T218,quincenal,2)-VLOOKUP(T218,subquincenal,2),0) -> 126.255632 | Z218: =TRUNC(IF(Y218>0.01,Y218,0),2) -> 126.25 | AA218: =TRUNC(IF(Y218<0.01,-Y218,0),2) -> 0 | AB218: =U218-W218-X218-Z218+AA218 -> 3500 | AE218: 132
D219: HERNANDEZ ALCARAZ ALVARO | H219: AUXILIARDE ALUMBRADO PUBLICO | I219: 15 | J219: TARJETA | L219: 0 | M219: 0 | N219: 217.7938 | O219: =TRUNC(N219*I219,2) -> 3266.9 | P219: =TRUNC(N219*I219*0.04,2) -> 130.67 | Q219: =TRUNC(N219*0.07*I219,2) -> 228.68 | R219: =L219 -> 0 | S219: =TRUNC(Q219+P219+(IF(R219>519,519,R219))+IF(K219=0,0,K219*N219),2) -> 359.35 | T219: =TRUNC((IF(K219=0,I219*N219,(I219-K219)*N219))+(IF(R219<519,0,R219-519)),2)+M219 -> 3266.9 | U219: =S219+T219 -> 3626.25 | X219: 0 | Y219: =IF(N219>0.01,(T219-VLOOKUP(T219,quincenal,1))*VLOOKUP(T219,quincenal,3)+VLOOKUP(T219,quincenal,2)-VLOOKUP(T219,subquincenal,2),0) -> 126.255632 | Z219: =TRUNC(IF(Y219>0.01,Y219,0),2) -> 126.25 | AA219: =TRUNC(IF(Y219<0.01,-Y219,0),2) -> 0 | AB219: =U219-W219-X219-Z219+AA219 -> 3500 | AE219: 133
D220: ROJAS HUERTA CARLOS ALFREDO | H220: AUXILIARDE ALUMBRADO PUBLICO | I220: 15 | J220: TARJETA | L220: 0 | M220: 0 | N220: =2222/15 -> 148.1333333 | O220: =TRUNC(N220*I220,2) -> 2222 | P220: =TRUNC(N220*I220*0.04,2) -> 88.88 | Q220: =TRUNC(N220*0.07*I220,2) -> 155.54 | R220: =L220 -> 0 | S220: =TRUNC(Q220+P220+(IF(R220>519,519,R220))+IF(K220=0,0,K220*N220),2) -> 244.42 | T220: =TRUNC((IF(K220=0,I220*N220,(I220-K220)*N220))+(IF(R220<519,0,R220-519)),2)+M220 -> 2222 | U220: =S220+T220 -> 2466.42 | X220: 0 | Y220: =IF(N220>0.01,(T220-VLOOKUP(T220,quincenal,1))*VLOOKUP(T220,quincenal,3)+VLOOKUP(T220,quincenal,2)-VLOOKUP(T220,subquincenal,2),0) -> -37.079488 | Z220: =TRUNC(IF(Y220>0.01,Y220,0),2) -> 0 | AA220: =TRUNC(IF(Y220<0.01,-Y220,0),2) -> 37.07 | AB220: =U220-W220-X220-Z220+AA220 -> 2503.49 | AE220: 134
D221: DEPARTAMENTO DE ALUMBRADO PUBLICO | O221: =SUM(O217:O220) -> 12183.8 | P221: =SUM(P217:P220) -> 487.34 | Q221: 852.86 | R221: 0 | S221: 1340.2 | T221: 12183.8 | U221: 13524 | V221: 0 | W221: 0 | X221: 0 | Y221: 359.215088 | Z221: 396.28 | AA221: 37.07 | AB221: 13164.79
D224: DEPARTAMENTO DE DEPORTES
A225: 120 | B225: 5 | C225: 14 | D225: ACOSTA GONZALEZ MIGUEL | H225: ENCARGADO DE LA UNIDAD DEPORTIVA | I225: 15 | J225: TARJETA | L225: 0 | M225: 0 | N225: 147.9014 | O225: =TRUNC(N225*I225,2) -> 2218.52 | P225: =TRUNC(N225*I225*0.04,2) -> 88.74 | Q225: =TRUNC(N225*0.07*I225,2) -> 155.29 | R225: =L225 -> 0 | S225: =TRUNC(Q225+P225+(IF(R225>519,519,R225))+IF(K225=0,0,K225*N225),2) -> 244.03 | T225: =TRUNC((IF(K225=0,I225*N225,(I225-K225)*N225))+(IF(R225<519,0,R225-519)),2)+M225 -> 2218.52 | U225: =S225+T225 -> 2462.55 | X225: 0 | Y225: =IF(N225>0.01,(T225-VLOOKUP(T225,quincenal,1))*VLOOKUP(T225,quincenal,3)+VLOOKUP(T225,quincenal,2)-VLOOKUP(T225,subquincenal,2),0) -> -37.458112 | Z225: =TRUNC(IF(Y225>0.01,Y225,0),2) -> 0 | AA225: =TRUNC(IF(Y225<0.01,-Y225,0),2) -> 37.45 | AB225: =U225-W225-X225-Z225+AA225 -> 2500 | AE225: 135
A226: 121 | D226: GONZALEZ FLORES RAMON | H226: AUXILIAR DE MANTENIMIENTO DE LA UNIDAD DEPORTIVA | I226: 15 | J226: TARJETA | L226: 0 | M226: 0 | N226: 113.977 | O226: 1709.65 | P226: 68.38 | Q226: 119.67 | R226: 0 | S226: 188.05 | T226: 1709.65 | U226: 1897.7 | X226: 0 | Y226: -102.30024 | Z226: 0 | AA226: 102.3 | AB226: 2000 | AE226: 136
... 150 more rows

Sheet Tablas 2015
A1: TARIFA MENSUAL ISR | E1: TARIFA QUINCENAL ISR | I1: TARIFA SEMANAL ISR | M1: 0.01 | N1: 496.07 | O1: 0 | P1: 1.92
A2: 2015 | E2: 2015 | I2: 2015 | M2: 496.08 | N2: 4210.41 | O2: 9.52 | P2: 6.4
A3: Lim. Inferior | B3: Cuota Fija | C3: % | E3: Lim. Inferior | F3: Cuota Fija | G3: % | I3: Lim. Inferior | J3: Cuota Fija | K3: % | M3: 4210.42 | N3: 7399.42 | O3: 247.24 | P3: 10.88
A4: 0.01 | B4: 0 | C4: 0.0192 | E4: 0.01 | F4: 0 | G4: 0.0192 | I4: 0.01 | J4: 0 | K4: 0.0192 | M4: 7399.43 | N4: 8601.5 | O4: 594.21 | P4: 16
A5: 496.08 | B5: 9.52 | C5: 0.064 | E5: 244.81 | F5: 4.65 | G5: 0.064 | I5: 114.25 | J5: 2.17 | K5: 0.064 | M5: 8601.51 | N5: 10298.35 | O5: 786.54 | P5: 17.92
A6: 4210.42 | B6: 247.24 | C6: 0.1088 | E6: 2077.51 | F6: 121.95 | G6: 0.1088 | I6: 969.51 | J6: 56.91 | K6: 0.1088 | M6: 10298.36 | N6: 20770.29 | O6: 1090.61 | P6: 21.36
A7: 7399.43 | B7: 594.21 | C7: 0.16 | E7: 3651.01 | F7: 293.25 | G7: 0.16 | I7: 1703.81 | J7: 136.85 | K7: 0.16 | M7: 20770.3 | N7: 32736.83 | O7: 3327.42 | P7: 23.52
A8: 8601.51 | B8: 786.54 | C8: 0.1792 | E8: 4244.11 | F8: 388.05 | G8: 0.1792 | I8: 1980.59 | J8: 181.09 | K8: 0.1792 | M8: 32736.84 | N8: 62500 | O8: 6141.95 | P8: 30
A9: 10298.36 | B9: 1090.61 | C9: 0.2136 | E9: 5081.41 | F9: 538.2 | G9: 0.2136 | I9: 2371.33 | J9: 251.16 | K9: 0.2136 | M9: 62500.01 | N9: 83333.33 | O9: 15070.9 | P9: 32
A10: 20770.3 | B10: 3327.42 | C10: 0.2352 | E10: 10248.46 | F10: 1641.75 | G10: 0.2352 | I10: 4782.62 | J10: 766.15 | K10: 0.2352 | M10: 83333.34 | N10: 250000 | O10: 21737.57 | P10: 34
A11: 32736.84 | B11: 6141.95 | C11: 0.3 | E11: 16153.06 | F11: 3030.6 | G11: 0.3 | I11: 7538.1 | J11: 1414.28 | K11: 0.3 | M11: 250000.01 | N11: En adelante | O11: 78404.23 | P11: 35
A12: 62500.01 | B12: 15070.9 | C12: 0.32 | E12: 30838.81 | F12: 7436.25 | G12: 0.32 | I12: 14391.45 | J12: 3470.25 | K12: 0.32
A13: 83333.34 | B13: 21737.57 | C13: 0.34 | E13: 41118.46 | F13: 10725.75 | G13: 0.34 | I13: 19188.62 | J13: 5005.35 | K13: 0.34
A14: 250000.01 | B14: 78404.23 | C14: 0.35 | E14: 123355.21 | F14: 38686.35 | G14: 0.35 | I14: 57565.77 | J14: 18053.63 | K14: 0.35
A19: SUBSIDIO PARA EL EMPLEO | E19: SUBSIDIO PARA EL EMPLEO | I19: SUBSIDIO PARA EL EMPLEO
A20: =+A2 -> 2015 | E20: =+E2 -> 2015 | I20: =+I2 -> 2015 | L20: 0.01 | M20: 1768.96 | N20: 407.02
A21: Para | B21: SE | E21: Para | F21: SE | I21: Para | J21: SE | L21: 1768.97 | M21: 2653.38 | N21: 406.83
A22: Ingresos | B22: Mensual | E22: Ingresos | F22: Quincenal | I22: Ingresos | J22: Semanal | L22: 2653.39 | M22: 3472.84 | N22: 406.62
A23: 0.01 | B23: 407.02 | E23: 0.01 | F23: 200.85 | I23: 0.01 | J23: 93.73 | L23: 3472.85 | M23: 3537.87 | N23: 392.77
A24: 1768.97 | B24: 406.83 | E24: 872.86 | F24: 200.7 | I24: 407.34 | J24: 93.66 | L24: 3537.88 | M24: 4446.15 | N24: 382.46
A25: 2653.39 | B25: 406.62 | E25: 1309.21 | F25: 200.7 | I25: 610.97 | J25: 93.66 | L25: 4446.16 | M25: 4717.18 | N25: 354.23
A26: 3472.85 | B26: 392.77 | E26: 1713.61 | F26: 193.8 | I26: 799.69 | J26: 90.44 | L26: 4717.19 | M26: 5335.42 | N26: 324.87
A27: 3537.88 | B27: 382.46 | E27: 1745.71 | F27: 188.7 | I27: 814.67 | J27: 88.06 | L27: 5335.43 | M27: 6224.67 | N27: 294.63
A28: 4446.16 | B28: 354.23 | E28: 2193.76 | F28: 174.75 | I28: 1023.76 | J28: 81.55 | L28: 6224.68 | M28: 7113.9 | N28: 253.54
A29: 4717.19 | B29: 324.87 | E29: 2327.56 | F29: 160.35 | I29: 1086.2 | J29: 74.83 | L29: 7113.91 | M29: 7382.33 | N29: 217.61
A30: 5335.43 | B30: 294.63 | E30: 2632.66 | F30: 145.35 | I30: 1228.58 | J30: 67.83 | L30: 7382.34 | M30: En adelante | N30: 0
A31: 6224.68 | B31: 253.54 | E31: 3071.41 | F31: 125.1 | I31: 1433.33 | J31: 58.38
A32: 7113.91 | B32: 217.61 | E32: 3510.16 | F32: 107.4 | I32: 1638.08 | J32: 50.12
A33: 7382.34 | B33: 0 | E33: 3642.61 | F33: 0 | I33: 1699.89 | J33: 0
A37: CAPITULO | B37: PARTIDA | C37: CONCEC | E37: DEPENDENCIA
A38: 1 | B38: 1 | C38: 1 | D38: SALA DE REGIDORES
A39: 1 | B39: 2 | C39: 2 | D39: PRESIDENCIA MUNICIPAL
A40: 1 | B40: 5 | C40: 3 | D40: SECRETARIA GENERAL Y SINDICATURA
A41: 1 | B41: 6 | C41: 4 | D41: OFICIALIA MAYOR
A42: 1 | B42: 7 | C42: 5 | D42: DEPARTAMENTO JURIDICO
A43: 1 | B43: 14 | C43: 6 | D43: REGISTRO CIVIL
A44: 1 | B44: 16 | C44: 7 | D44: OFICIALIA MAYOR DE CULTURA
A45: 1 | B45: 19 | C45: 8 | D45: PARTICIPACION CIUDADANA
A46: 1 | B46: 23 | C46: 9 | D46: RELACIONES EXTERIORES
A47: 2 | B47: 1 | C47: 10 | D47: DELEGACIONES
A48: 2 | B48: 2 | C48: 11 | D48: AGENCIAS
A49: 3 | B49: 1 | C49: 12 | D49: HACIENDA MUNICIPAL
A50: 3 | B50: 3 | C50: 13 | D50: DEPTO. DE INGRESOS
A51: 3 | B51: 7 | C51: 14 | D51: DEPTO. DE EGRESOS
A52: 3 | B52: 12 | C52: 15 | D52: DEPTO. DE INFORMATICA
A53: 3 | B53: 13 | C53: 16 | D53: DEPTO. DE IMPUESTO PREDIAL Y CATASTRO
A54: 4 | B54: 1 | C54: 17 | D54: DIRECCION GENERAL DE OBRAS PUBLICAS
A55: 4 | B55: 3 | C55: 18 | D55: DEPTO. DE SERVICIOS PUBLICOS
A56: 4 | B56: 4 | C56: 19 | D56: DEPTO. DE CONSTRUCCION
A57: 5 | B57: 2 | C57: 20 | D57: DEPTO. DE CEMENTERIOS
A58: 5 | B58: 3 | C58: 21 | D58: DEPTO. RASTRO
A59: 5 | B59: 5 | C59: 22 | D59: DEPTO. MERCADOS
A60: 5 | B60: 7 | C60: 23 | D60: DEPTO. DE ASEO PUBLICO
A61: 5 | B61: 8 | C61: 24 | D61: DEPTO. DE PARQUES Y JARDINES
A62: 5 | B62: 9 | C62: 25 | D62: VERTEDERO
A63: 5 | B63: 10 | C63: 26 | D63: DEPTO. DE ALUMBRADO PUBLICO
A64: 5 | B64: 11 | C64: 27 | D64: DEPTO. DE AGUA DRENAJE Y ALCANTARILLADO
A65: 5 | B65: 14 | C65: 28 | D65: DIR. DE TURISMO Y DEPORTES
A66: 5 | B66: 15 | C66: 29 | D66: SERVICIO MEDICO
A67: 5 | B67: 26 | C67: 30 | D67: INSPECCION AGRICOLA Y GANADERA
A68: 11 | B68: 17 | C68: 31 | D68: SEGURIDAD PUBLICA
A69: 11 | B69: 18 | C69: 32 | D69: PROTECCION CIVIL
